{"text_format":"1","workbook":"xlsx","n_sheets":12,"sheets":["Preface","Information","Mode","Points Guideline","Analogue","Binary","Binary_Lookup","Analogue_Lookup","Reference","Missing Points","Customer Point List","Template"],"not_rendered":{"charts":0,"images":26,"macros":1,"external_links":0,"defined_names":3,"comments":4,"pivot_tables":0},"unopened":[],"bounds":{"document_bytes":16777216,"sheet_cells":100000,"rows_first":2000,"rows_last":500,"rows_between":2000,"halvings":0,"cell_chars":16384,"cell_head_chars":4096},"cells_cut":0,"cells_raw":0,"read":"whole","date_system":"1900"}

{"sheet":"Preface","index":0,"n_rows":49,"n_cols":3,"rows_kept":49,"cut":false,"hidden":false,"merged":[[6,1,19,8],[22,1,46,8],[48,1,49,8]]}
[]
[null,"Automation Customer Interface List"]
[null,"Template"]
[]
[null,"Version:",4]
[]
[null,"DOCUMENT HIERARCHY\nThis document resides within the Planning component of Western Power’s Asset Management System (AMS). \nDOCUMENT DATE\nThis document was last updated March 2024\nIMPLEMENTATION DATE\nThis document came into service July 2023\nDOCUMENT CONTROL\nRecord of endorsement, approval, stakeholders, and notification list is provided in EDM# 66462539\nRESPONSIBILITIES\nWestern Power’s Engineering & Design Function is responsible for this document\n"]
[]
[]
[]
[]
[]
[]
[]
[]
[]
[]
[]
[]
[]
[]
[]
[null,"CONTACT\nWestern Power welcomes your comments, questions, and feedback on this document, which can be emailed to standards.excellence@westernpower.com.au\nDISCLAIMER\nThis document is published by Western Power for information purposes only. The user must make and rely on their own inquiries as to the quality, currency, accuracy, completeness, and fitness for purpose of any information contained in this document. Western Power does not give any warranty or make any representation concerning the information provided in this document. By using the information in this document, the user acknowledges that they are solely responsible for obtaining independent professional advice prior to commencing any project, activities, or other works. Western Power is not liable in any way for any loss, damage, liability, cost or claim of any kind whatsoever (including responsibility by reason of its negligence) arising from or in connection with the use of or reliance on the information contained in this document. Western Power reserves its rights to modify, supplement or cancel this document or any part thereof at any time and without notice to users.\nCOPYRIGHT\n© Copyright 2024 Electricity Networks Corporation trading as Western Power. All rights reserved. No part of this work may be reproduced or copied in any form or by any means without the written permission of Western Power or unless permitted under the Copyright Act 1968 (Cth). Product or company names are trademarks or registered trademarks of their respective holders"]
[]
[]
[]
[]
[]
[]
[]
[]
[]
[]
[]
[]
[]
[]
[]
[]
[]
[]
[]
[]
[]
[]
[]
[]
[]
[null,"© Western Power\nABN 18540492861"]

{"sheet":"Information","index":1,"n_rows":344,"n_cols":4,"rows_kept":344,"cut":false,"hidden":false,"merged":[[1,3,2,3],[1,0,2,0],[1,2,2,2],[23,2,24,2],[25,2,29,2],[251,2,258,2],[249,2,250,2],[31,2,32,2],[23,3,24,3],[31,3,32,3],[86,3,87,3],[86,2,87,2],[249,3,250,3],[219,2,228,2],[137,2,142,2],[33,2,43,2],[210,2,214,2]]}
[]
["m Index",null,"Prerequisites"]
[]
["Prerequisites",null,"Enable Macros"]
["About",1,"Click the File tab."]
[null,2,"Click Options."]
["Generating point Template",3,"Click Trust Center, and then click Trust Center Settings."]
["          - Running The Points Wizard",4,"In the Trust Center, click Macro Settings."]
[]
["Customising The Customer Points list "]
["          - View Sheet In Two Windows"]
["          - Showing All Point Types"]
["          - Hiding All Point Types"]
["          - Showing Specific Point Types"]
["          - Hiding Specific Point Types"]
["          - Defining  a Point Naming Template"]
["          - Flagging Missing Point Naming Templates "]
[]
["Customer Point List Manipulation"]
["          - Adding Rows Using The Input Assistant"]
["          - Adding Rows Natively Through Excel "]
["          - Adding Multiple Rows Natively Through Excel ",5,"Make the selections that you want, then click OK."]
[]
[null,null,"About","m"]
[]
[null,null,"The Customer Interface List Template provides the customer a tool to generate a generic point list based upon the AEMO and Western Power Customer Interface Point Standards. This document is published by Western Power for information purposes only. Western Power reserves its rights to modify, supplement or cancel this document or any part thereof at any time and without notice to users."]
[]
[]
[]
[]
[]
[null,null,"Generating Points Template","m"]
[]
[null,null,"The Points Wizard has been designed to utilise the AEMO Standardised Interface Point List in conjunction with the Western Power’s Standards to populate the Customer Interface Point List, based on respective characteristics of the facility such as facility size, operation mode and facility type.\n\nThe customer should utilise the Points Wizard to populate initial point list for the facility, followed by the customisation of the generated point list respective to the specifications of the new facility. \n\nThis entails completion of key attributes such as the Facility Decryption, Component Identifier (X) etc. for the respective point types (Binary Inputs, Binary Outputs, Digital Inputs and Digital Outputs) within the Customer Point List sheet. \n"]
[]
[]
[]
[]
[]
[]
[]
[]
[]
[]
[null,null,"Running The Points Wizard","m"]
[null,1,"Click the Run Points Wizard button."]
[]
[]
[]
[null,2,"Fill in the Point Template Wizard with the characteristics of the new facility.\n\nNote: This operation will delete any existing points within the Customer Point List sheet."]
[]
[]
[]
[]
[]
[]
[]
[]
[]
[]
[]
[]
[]
[]
[]
[]
[]
[]
[]
[]
[]
[]
[]
[]
[]
[]
[]
[]
[]
[]
[]
[]
[]
[]
[null,2,"Click Create Template."]
[]
[null,null,"Customising The Customer Points list ","m"]
[]
[null,null,"View Sheet In Two Windows"]
[null,1,"Click on the View on the workbook ribbon."]
[]
[]
[]
[]
[]
[null,2,"Click on the New Window on the workbook ribbon."]
[]
[]
[]
[]
[]
[null,null,"Showing All Point Types","m"]
[null,1,"Click on the Customer Point List tab."]
[null,2,"Click 2."]
[]
[]
[]
[]
[null,null,"Hiding All Point Types","m"]
[null,1,"Click on the Customer Point List tab."]
[null,2,"Click 1."]
[]
[]
[]
[]
[]
[null,null,"Showing Specific Point Types","m"]
[null,1,"Click on the Customer Point List tab."]
[null,2,"Scroll down to the desired Point Type."]
[null,3,"Click +."]
[]
[]
[]
[]
[]
[]
[null,null,"Hiding Specific Point Types","m"]
[null,1,"Click on the Customer Point List tab."]
[null,2,"Scroll down to the below the desired Point Type list."]
[null,3,"Click -."]
[]
[]
[]
[]
[]
[]
[null,null,"Defining  a Point Naming Template","m"]
[null,null,"The Naming Template defines the prescribed attributes defined by AEMO and Western Power Standards and must be identified to legitimise the point within the proposed Customer Point List. \n\nNote: The point list must achieve 95% compliance, through the identification of the corresponding Point Template for each proposed point, prior to the submission of the Proposed Point List to Western Power"]
[]
[]
[]
[]
[]
[null,1,"Click on the Customer Point List tab."]
[null,2,"Click on the Name Template cell relative to the point."]
[]
[]
[]
[]
[]
[]
[]
[]
[]
[null,3,"This will bring up the Input Assistant - to assist with the point template selection. "]
[]
[]
[]
[]
[]
[]
[]
[]
[]
[]
[]
[]
[]
[]
[null,4,"Utilise the Select Naming Descriptor to identify the required template. "]
[]
[]
[]
[]
[]
[]
[]
[]
[]
[]
[]
[]
[]
[null,4,"Click on the Select Naming Template, which should automatically populate based on the prior selection. "]
[]
[]
[]
[]
[]
[]
[]
[]
[]
[]
[]
[]
[]
[null,4,"Click Insert."]
[null,5,"Key attributes required by AEMO and Western Power should now be populated, such as NOPS Point Name, AEMO Point Name, Command Type, Object, Variant etc."]
[null,6,"If the Naming Template requires an Identifier (X) (template name will contain an X), the customer must provide an equipment Identifier (X)."]
[]
[]
[]
[]
[]
[]
[]
[]
[null,6,"Altering the Identifier (X) will update the NOPS Point Name and Naming Template accordingly."]
[]
[null,null,"Where:\n               nnn represents the site abbriviateion, which should be provided. \n               X will represent the Identifier.\n               Facility Description is a free type field that may be filled by the customer as desired. "]
[]
[]
[]
[]
[]
[null,null,"Note: The dropboxs have been incorporated to maintain the naming standard, there should be no deviations from the proposed naming convention by the AEMO. The forumula in column H determines the required Network Operations Descrtiption based on the standard."]
[]
[null,null,"Flagging Missing Point Naming Templates ","m"]
[null,null,"On occasions there may be points required by AEMO and Western Power that are not present within the overarching Customer Interface Point List Standard and are specific to the new facility. These points will not have an associated Naming Template and must be flagged for review.  \n\nNote: The point list must achieve 95% compliance, through the identification of the corresponding Point Template for each proposed point, prior to the submission of the Proposed Point List to Western Power. \n\nA point list submission may only consist of 5% points without Naming Templates and flagged for review. "]
[]
[]
[]
[]
[]
[]
[]
[]
[]
[null,1,"Click on the Customer Point List tab."]
[null,2,"Click on the Name Template cell relative to the point."]
[null,3,"This will bring up the Input Assistant - to assist with the point template selection. "]
[]
[]
[]
[]
[]
[]
[]
[]
[]
[]
[]
[]
[]
[]
[]
[null,4,"Click the P icon to flag the point."]
[]
[null,null,"Customer Point List Manipulation","m"]
[]
[null,null,"Utilising the Point Wizard populates the minimum number of predefined points that are required based upon the facility specifications. \n\nAdditional points are often required to provide higher visibility of the facility, this will often require the addition of rows to the respective point types (BI, BO, AI, and AO). The subsequent subsection highlights the best methods to perform this to maintain the integrity of the Customer Point List. \n\nNote: To maintain integrity  the addition of rows to any BI, BO, AI and AO dataset cannot occur at the first or last point of the dataset. "]
[]
[]
[]
[]
[]
[]
[]
[null,null,"Adding Rows Using The Input Assistant","m"]
[null,1,"Click on the Customer Point List tab."]
[null,2,"Click on the Name Template cell relative to the point."]
[null,3,"This will bring up the Input Assistant - to assist with the point template selection. "]
[null,4,"Use O to insert a row above the selected entry or use N to insert a row below the selected entry. "]
[]
[]
[]
[]
[]
[]
[]
[]
[]
[]
[]
[]
[]
[]
[]
[null,null,"Adding Rows Natively Through Excel ","m"]
[null,1,"Click on the Customer Point List tab."]
[null,"2a","Right click row number you wish to insert a row below."]
[]
[]
[]
[]
[]
[]
[]
[null,"3b","Select Insert."]
[null,"2b","Select the row number you wish to insert a row below."]
[]
[]
[]
[]
[]
[]
[null,"3b","Use the keyboard shortcut Ctrl and Shift and +."]
[]
[]
[]
[]
[]
[]
[]
[]
[]
[]
[]
[]
[]
[]
[]
[]
[]
[]
[]
[]
[]
[]
[]
[]
[]
[]
[]
[]
[]
[]
[]
[]
[]
[null,null,"Adding Multiple Rows Natively Through Excel ","m"]
[null,1,"Click on the Customer Point List tab."]
[null,2,"Select multiple rows."]
[]
[]
[]
[]
[]
[]
[]
[]
[null,3,"Right click on the selected row numbers you wish to insert a row below."]
[null,4,"Select Insert."]

{"sheet":"Mode","index":2,"n_rows":23,"n_cols":4,"rows_kept":23,"cut":false,"hidden":false,"merged":[]}
["Last Run Logs"]
[null,"Site Name",null,"User Audit"]
[]
[null,"Greater Than OR Equal 10 MW"]
[null,"Less Than 10 MW"]
[]
[null,"Scheduled"]
[null,"Non-Scheduled"]
[null,"Semi-Scheduled"]
[null,"Unregistered"]
[null,"Electric Storage"]
[null,"Gas Turbine"]
[null,"Steam Turbine"]
[null,"Solar Generation"]
[null,"Wind Generation"]
[null,"Fast Start"]
[null,"Interuptible Load"]
[]
[null,"UFLS"]
[null,"ELPS"]
[]
[null,"Load"]
[null,"Non-exporting/PPG"]

{"sheet":"Points Guideline","index":3,"n_rows":300,"n_cols":19,"rows_kept":300,"cut":false,"hidden":false,"merged":[[26,1,26,18],[37,1,37,18],[65,1,65,18],[83,1,83,18],[1,0,6,4],[1,5,4,9],[7,1,7,2],[8,1,8,2],[12,1,12,2],[13,1,13,2],[7,0,8,0],[138,1,138,19],[140,1,140,5],[227,1,227,4],[141,1,141,5],[151,1,151,5],[152,1,152,5],[161,1,161,5],[177,1,177,5],[178,1,178,5],[189,1,189,5],[190,1,190,5],[207,1,207,6],[208,1,208,6],[213,1,213,6],[219,1,219,4],[220,1,220,4],[274,1,274,4],[275,1,275,4],[286,1,286,4],[294,1,294,4],[162,1,162,5],[169,5,171,5],[234,1,234,4],[224,1,224,4],[268,1,268,4],[239,1,239,4],[240,1,240,4],[246,1,246,4],[249,1,249,4],[257,1,257,4],[258,1,258,4]]}
[]
["Operational Data Point Requirements for Scheduled Facilities, Semi-Scheduled Facilities, and Non-Scheduled Facilities"]
[]
[]
[]
[]
[]
["m","Standard Requirements:"]
[null,"Binary Outputs",null,null,"Updated : 17/06/2022"]
[null,null,"Binary Inputs",null,"AEMO - Technical Specifications Documentation"]
[null,null,"Analogue Inputs",null,"Updated : 01/12/2016"]
[null,null,"Analogue Outputs",null,"Western Power - Technical Rules"]
[]
[null,"Aditional Operational Data Point Requirements For Scheduled Facilities:"]
[null,null,"Gas Turbines"]
[null,null,"Steam Turbines"]
[null,null,"Wind Generation"]
[null,null,"Solar PV Generation"]
[null,null,"Electric Storage Resources"]
[null,null,"Fast Start Facilities"]
[null,null,"Interuptible Loads"]
[null,null,"UFLS"]
[null,null,"ELPS"]
[null,null,"Non-exporting/PPG"]
[]
[]
["m","Binary Outputs: AEMO → NO → Facility"]
[null,"Facility Point Description","Scheduled Facility ","Semi-Scheduled Facility","Non-Scheduled Facility","Network Operations Naming Convention","Notes","Unit","Data Type","Command/Point Type","DNP Index","Object","Variant","Scaling","Max Value","Max Eng Value","Min Value","Min Eng Value","Function/Comments"]
[null,"Facility Switching Devices Opened/Closed (E.G. Circuit Breakers) ","Yes","Yes","Yes","nnn X CB OPEN\n","Emergency Stop Enabled/Disabled. ",null,"BO","SBO / PULSE"]
[null,"Facility Control Mode","See Notes","See Notes","See Notes","nnn MVAR CONTROL MODE\nnnn PF CONTROL MODE\nnnn KV CONTROL MODE","Where CONTROL_MODE is one of the individual type of voltage control mode available (e.g. MVAR, PF, KV), if applicable.",null,"BO",null,null,10,2]
[null,"Generator Step-Up Transformer Tap Control","Yes","Yes","Optional ","nnn GSUT X TAP CONTROL ","Raise/Lower voltage controls. If required bu Network Operator",null,"BO","SBO / PULSE"]
[null,"Rtu To Dcs Comms Watchdog ","Yes","Yes","Yes","nnn RTU DCS COMMS LINK HEARTBEAT","\nRTU Internal Point \nThis internal point periodically sends a control signal to the Facilities control system. A response is expected from the control system to indicate that communications are still alive. If a response is not received within a specific time period, an alarm is generated.",null,"BO","SBO / PULSE"]
[null,"Master Station Communications Fail ","Optional ","Optional ","Optional ","RTU INTERNAL POINT ","\nRTU Internal Point \nInternal indication that the communications between the Network Operator’s SCADA Remote Terminal Unit and the Network Operator’s SCADA master station has failed.",null,"BO","SBO / PULSE",null,10,2]
[null,"Dispatch Cap/Target MW (Injection)","Yes (As applicable) - See Notes","Yes (As applicable) - See Notes","Optional ","nnn DISPATCH INJECTION CAP MW","This is the Dispatch Cap MW setpoint for Injection (as applicable) for current Dispatch Interval, or next Dispatch Interval where there is a step change just prior to the commencement of that interval.",null,"BO","SBO / PULSE",null,10,2]
[null,"Dispatch Cap/Target MW (Withdrawal)","Yes (As applicable) - See Notes","Yes (As applicable) - See Notes","Optional ","nnn DISPATCH WITHDRAWAL CAP MW","This is the Dispatch Cap MW setpoint for Withdrawal (as applicable) for current Dispatch Interval, or next Dispatch Interval where there is a step change just prior to the commencement of that interval.",null,"BO","SBO / PULSE"]
[]
[]
["m","Binary Inputs: Facility → NO → AEMO"]
[null,"Facility Point Description","Scheduled Facility ","Semi-Scheduled Facility","Non-Scheduled Facility","Network Operations Naming Convention","Notes","Unit","Data Type","Command/Point Type","DNP Index","Object","Variant","Scaling","Max Value","Max Eng Value","Min Value","Min Eng Value","Function/Comments"]
[null,"All Facility Switching Devices Opened/Closed (E.G. Isolators, Earth Switches, Circuit Breakers, Bus-Ties)","Yes","Yes","Yes","nnn X CB OPEN\nnnn X ESW CLOSED\nnnn X ISOL OPEN\nnnn X ISOL CLOSED\nnnn X Bus Tie Open ",null,null,"BI",null,null,2,2]
[null,"Governor Mode (E.G. Droop/Isochronous)","Yes","Yes","Optional","nnn Governor Mode","Where applicable",null,"BI",null,null,2,2,null,null,null,null,null,"Auto & Manual Indication"]
[null,"Fuel Type (E.G. Liquid/Gas/Coal)","Yes","Yes","Yes","nnn FUEL IN USE","Only required where a Registered Facility can operated on more than one fuel type. ",null,"BI",null,null,2,2,null,null,null,null,null,"Local' mode Indication"]
[null,"Associated Reactive Plant Switching Devices Opened/Closed (E.G. Isolators, Circuit Breakers – Two Complementary Contacts I.E. Nc/No Pair)","Yes","Yes","Optional","nnn X PLANT NAME CB","Where PLANT_NAME is the relevant piece of equipment (e.g. synchronous condenser).",null,"BI",null,null,2,2,null,null,null,null,null,"Component of the Facility control system is defective."]
[null,"Status Of Anti-Islanding Protection","Yes","Yes","Yes","nnn X ANTI ISLANDING PROTECTION DEFECTIVE \nnnn X ANTI ISLANDING PROTECTON ENABLED IND\nnnn X ANTI ISLANDING PROTECTION TRIP ","If an anti-islanding scheme is present at the Registered Facility",null,"BI",null,null,2,2,null,null,null,null,null,"AGC Availability"]
[null,"Generator Step-Up Transformer(S) Tap Position","Yes","Yes","Optional","nnn X GSUTX TAP POSITION","Where applicable",null,"BI",null,null,2,2,null,null,null,null,null,"Droop enabled"]
[null,"Generator Step-Up Transformer(S) Tap Changer Control Mode (Remote/Local)","See Notes","Yes","No","nnn X GSUTX TAP CHANGER CONTROL MODE","If the tap changer has remote tap changing capability, this indication identifies whether the tap changer is under local or remote control.",null,"BI",null,null,2,2]
[null,"Generator Step-Up Transformer AVR Status","Yes","Yes","Optional","nnn GSUTX AVR","Where applicable",null,"BI",null,null,2,2,null,null,null,null,null,"If the tap changer has remote tap changing capability, this indication identifies whether the tap changer is under local or remote control."]
[null,"Generator Step-Up Transformer(S) Protection Status (Normal/Abnormal)","Yes","Yes","Optional","nnn GSUT X PROTECTION DEFECTIVE",null,null,"BI"]
[null,"Generator Step-Up Transformer(S) Protection Operated","Yes","Yes","Optional","nnn GSUT X PROTECTION OPERATED",null,null,"BI"]
[null,"Protective Load Shed Operated","Yes","Yes","Optional","nnn PROTECTIVE LOAD SHED OPERATED",null,null,"BI",null,null,2,2]
[null,"Distributed Control System (Dcs) To Remote Terminal Unit (Rtu) Comms Link Heartbeat - Communication Link(S) Fail","Yes","Yes","Yes","nnn DCS SLAVE RTU FAIL ","Alarm raised when the communications fail between the RTU and the Facility control system",null,"BI",null,null,2,2]
[null,"Generator /Main Switch/Busbar Protection Operated","Yes","Yes","Yes","nnn X PROTECTION OPERATED\nnnn X PROTECTION DEFECTIVE",null,null,"BI",null,null,2,2]
[null,"Step Up Transformer Protection Operated","Yes","Yes","Yes","nnn X PROTECTION OPERATED \nnnn X PROTECTION DEFECTIVE ",null,null,"BI",null,null,2,2]
[null,"Associated Reactive Plant Protection Operated","Yes","Yes","Optional","nnn PLANT_NAME PROTECTION OPERATED ","Only required where additional reactive power devices have been installed. Where PLANT_NAME is the relevant piece of equipment (e.g. a synchronous condenser)",null,"BI",null,null,2,2]
[null,"Facility Local/Remote MW Control","Yes","Yes","Optional","nnn REMOTE CONTROL ","Determines if the Registered Facility is a capable of receiving instructions from AEMO’s AGC system. If this point is set to ‘local’, AEMO’s AGC system will remove the Registered Facility from AGC dispatch.",null,"BI",null,null,2,2]
[null,"Facility Control System Failure","Yes","Yes","Yes","nnn CONTROL SYSTEM FAIL ",null,null,"BI",null,null,2,2]
[null,"Facility Frequency Control Mode","Optional ","Optional","Optional","nnn FREQUENCY CONTROL MODE",null,null,"BI",null,null,2,2]
[null,"Facility Mvar Control Mode Received","Optional ","Optional","Optional","nnn MVAR CONTROL MODE","Back Indication Point",null,"BI",null,null,2,2]
[null,"Facility Pf Control Mode Received","Optional ","Optional","Optional","nnn PF CONTROL MODE","Back Indication Point",null,"BI",null,null,2,2]
[null,"Facility KV Control Mode Received","Optional ","Optional","Optional","nnn KV CONTROL MODE","Back Indication Point",null,"BI",null,null,2,2]
[null,"Generating Facility Synchonising ","Yes","No ","No","nnn SYNC IN PROGRESS",null,null,"BI",null,null,2,2]
[null,"Generating Unit Turbine Speed","Yes - See Notes","Yes- See Notes","No","nnn GX TURBINE SPEED","Indication of the turbine speed associated with each generating unit in the Facility, measured as a %, where applicable to the relevant technology. ",null,"BI",null,null,2,2]
[null,"AGC Control Availability Staus ","Yes","Yes","Optional ","nnn AGC CONTROL SELECTION ","An indication from the Registered Facility that it is available for AGC control. When true, the Registered Facility will receive signals as per the participation modes outlines in AEMO's technical specification:Operational Data Poins for Registered Facilities.\n\n If a Registered Facility is no longer available for AGC dispatch, it must update this point within 30 seconds to reflect this.\n",null,"BI",null,null,2,2]
[]
[]
["m","Analogue Outputs:  AEMO → NO → Facility"]
[null,"Facility Point Description","Scheduled Facility ","Semi-Scheduled Facility","Non-Scheduled Facility","Network Operations Naming Convention","Notes","Unit","Data Type","Command/Point Type","DNP Index","Object","Variant","Scaling","Max Value","Max Eng Value","Min Value","Min Eng Value","Function/Comments"]
[null,"Generator Terminal Voltage Control","See Notes","See Notes","See Notes","nnn X DESIRED KV","If required by the Network Operator.\nThis setpoint requires a Back-Indication Point","KV","AO"]
[null," AGC Participation/Control Mode Indication","Yes","Yes","Yes (As applicable) - See Notes","nnn AGC CONTROL MODE","The current AGC mode that AEMO is dispatching the Registerd Facility under. This setpoint is issued on-change.",null,"AO","SBO",null,40,2,0.1,1300,130,0,0]
[null,"Facility AGC Low Operation Limit","Optional ","Optional ","Optional- See Notes","nnn LOW AGC LIMIT","The lower limit used by AGC. The Registered Facility will not be sent a target below this value. Provided only for informational purposes.","MW","AO","SBO",null,40,2,0.01,-1,-0.01,-10001,-100.01,"Raw 1000 = -200.0 MW\nRaw 1400 = +200.0 MW"]
[null,"Facility AGC High Operation Limit","Optional ","Optional ","Optional- See Notes","nnn HIGH AGC LIMIT","The upper limit used by AGC. The Registered Facility will not be sent a target above this value. Provided only for informational purposes.","MW","AO","SBO",null,40,2,0.01,10001,100.01,-1,-0.01]
[null,"Facility Actual MW Setpoint","Optional ","Optional ","Optional- See Notes","nnn ACTUAL MW","The current Registered Facility’s loading as seen from the master station. This setpoint is issued periodically at a configurable time interval.","MW","AO","SBO",null,40,2,0.01,10001,100.01,-10001,-100.01,"Raw 1000 = -200.0 MW\nRaw 1400 = +200.0 MW"]
[null,"Facility Basepoint MW Setpoint","Optional ","Optional ","Optional- See Notes","nnn BASEPOINT MW","The current basepoint used by AGC, which is the value to which a Registered Facility would be dispatched when participating in energy only. This setpoint is issued on-change.","MW","AO","SBO",null,40,2,0.01,10001,100.01,-10001,-100.01,"Raw 1000 = -200.0 MW\nRaw 1400 = +200.0 MW"]
[null," Look-Ahead Dispatch Target MW Setpoint","Optional ","Optional ","Optional- See Notes"," nnn LOOK-AHEAD MW ","One or more look-ahead points can be configured, which communicate the most recent forecast of Dispatch Targets for a Dispatch Interval or Pre-Dispatch Interval in a set ahead period (e.g. 15 minutes from the latest dispatch).\n\nUp to a maximum of 4 lookahead setpoints per Facility. The\ntimes for each lookahead are configurable, however restricted to times corresponding to 5-minute dispatch intervals within the Pre-Dispatch horizon. These setpoints are issued on-change.\n\nThe five-minute ahead look-ahead is recommended to be\nincluded, as it is the point to which the effective Dispatch\nTarget or Dispatch Cap will be sent. Other look-ahead points\nare optional.","MW","AO","SBO",null,40,2,0.01,10001,100.01,-10001,-100.01]
[null,"Facility Dispatch Target MW","Optional ","Optional ","Optional- See Notes","nnn DISPATCH TARGET MW","This is the EOI Dispatch Target for current Dispatch Interval, or next Dispatch Interval where there is a step change just prior to the commencement of that Dispatch Interval.\n\nIf present, it is recommended that this setpoint has a Back-Indication Point.","MW","AO"]
[null,"Facility Dispatch Target Ramp Rate","Optional ","Optional ","Optional- See Notes","nnn DISPATCH TARGET RAMP RATE","Facilities are required to ramp linearly between Dispatch Targets unless directed otherwise. Optionally, AEMO can issue an EOI Dispatch Target and a desired Ramp Rate if this point is available.\n\nIf present, it is recommended that this setpoint has a Back-Indication Point.","MW/min","AO","SBO",null,40,2,1,24001,24001,-1,-1]
[null,"Facility Desired Net MW Setpoint","Yes","Yes","Optional- See Notes","nnn DESIRED MW","The MW set point which the Registered Facility must follow. This is sent (up to) every four seconds if the Facility is operating under AGC.\n\nThis point is compulsory for Registered Facilities providing Regulation or Contingency Reserve, and encouraged but optional for Registered Facilities only seeking to participate in Energy. This does not include Registered Facilities that provide these Essential System Services via a block or switched response.\n\nThis setpoint requires a Back-Indication Point.","MW","AO"]
[null,"Facility Desired Ramp Rate Setpoint","See Notes","See Notes","Optional- See Notes","nnn DESIRED RAMP RATE","This is the Dispatch required ramp rate, issued on-change\nregardless of whether the unit is in AGC control or local control. If the Registered Facility is participating in AEMO-managed linear ramping, this value is not required as the Regsitered Facility will be ramped via AGC (see AGC/ABC Technical Specification).\n\nIf the Registered Facility is not under AGC control, AEMO can\noptionally set the ramp rate of the Facility per Dispatch Interval using this control to match the Dispatch Target ramp rate (e.g. for a Semi-Scheduled Facility).\n\nIf the Registered Facility is participating in Regulation the\nFacility should ignore this and use the maximum ramp rate\nachievable to move to its desired net MW setpoint.\n\n"]
[null,"Facility Desired Net Mvar Setpoint","Yes","Yes","Yes","nnn FACILITY DESIRED NET MVAR SETPOINT","Where CONTROL_MODE is one of the individual type of voltage control mode available (e.g. MVAR, PF, KV), if applicable.","MVAR","AO","SBO",null,40,2,0.01,4900,49,-4900,-49,"-200.00 MVAr to +200.00 MVAr (2 dec place)"]
[null,"Facility Desired Power Factor Setpoint","Yes","Yes","Yes","nnn FACILITY DESIRED POWER FACTOR SETPOINT",null,"PF","AO","SBO",null,40,2,1E-3,1001,1.0010000000000001,-1001,-1.0010000000000001,"-1.00 to + 1.00 (2 dec place)"]
[null,"Facility Desired KV Setpoint","Yes","Yes","Yes","nnn FACILITY DESIRED KV SETPOINT",null,"KV","AO","SBO",null,40,2,0.1,4001,400.1,-1,-0.1]
[]
[]
["m","Analogue Inputs:  Facility → NO → AEMO"]
[null,"Facility Point Description","Scheduled Facility ","Semi-Scheduled Facility","Non-Scheduled Facility","Network Operations Naming Convention","Notes","Unit","Data Type","Command/Point Type","DNP Index","Object","Variant","Scaling","Max Value","Max Eng Value","Min Value","Min Eng Value","Function/Comments"]
[null,"Gross Active Power Measurement Of Each Generating Unit","Yes","Yes","Optional ","nnn X GROSS MW ","Where one or more of the Energy Producing Systems within the Registered Facility are inverter connected, these values should measure the AC side of the inverter, or collection of inverters as appropriate. Where a collector group has a gross capacity of more than 10 MW, it should generally be measured separately, and not grouped with other collectors for telemetry purposes.","MW","AI","Signed 16 Bit",null,32,2,0.01,10001,100.01,-10001,-100.01]
[null,"Gross Reactive Power Measurement Of Each Generating Unit","Yes","Yes","Optional ","nnn X GROSS MVAR","Where the Energy Producing System is inverter connected, these values should measure the AC side of the inverter, or collection of inverters as appropriate","MW","AI","Signed 16 Bit",null,32,2,0.01,10001,100.01,-10001,-100.01]
[null,"Net Active Power Measurement Of Each Generating Unit","Yes","Yes","Optional ","nnn X NET MW","Where the Facility is inverter connected, these values should measure the AC side of the inverter. If this value measures a collection of inverters, a measurement at the high voltage side of the group’s step up transformer is acceptable.","MVAr","AI","Signed 16 Bit",null,32,2,0.01,10001,100.01,-10001,-100.01]
[null,"Net Reactive Power Measurement Of Each Generating Unit","Yes","Yes","Optional ","nnn X NET MVAR","Where the Facility is inverter connected, these values should measure the AC side of the inverter, or collection of inverters as appropriate.","MW","AI","Signed 16 Bit",null,32,2,1,24001,24001,-1,-1]
[null,"Generating Unit Stator Voltage","Yes","Yes","Yes","nnn X KV","If the relevant Energy Producing System has a stator","MVAr","AI","Signed 16 Bit",null,32,2,0.01,-1,-0.01,-10001,-100.01]
[null,"Generating Unit Target Stator Voltage","Yes","Yes","Optional ","nnn X TARGET KV ","If applicable, current generator terminal target voltage","kV","AI","Signed 16 Bit",null,32,2,0.01,10001,100.01,-1,-0.01]
[null,"Total Gross Active Power For The Facility","Yes","Yes","Optional ","nnn GROSS MW ","Where a Facility comprises of more than one Energy Producing System. This can be a Calculated Point.","kV","AI","Signed 16 Bit",null,32,2,0.01,10001,100.01,-10001,-100.01]
[null,"Total Gross Reactive Power For The Facility","Yes","Yes","Optional ","nnn GROSS MVAR","Where a Facility comprises of more than one Energy Producing System. This can be a Calculated Point.","MVAr","AI","Signed 16 Bit",null,32,2,0.01,10001,100.01,-10001,-100.01]
[null,"Total Net Active Power For The Facility","Yes","Yes","Optional ","nnn NET MW","Where a Facility comprises multiple Connection Points, this point can be a Calculated Point which is sum of Connection Point measurements.","MW","AI","Signed 16 Bit",null,32,2,0.01,10001,100.01,-10001,-100.01]
[null,"Total Net Reactive Power For The Registered Facility","Yes","Yes","Optional ","nnn NET MVAR","Where a Facility comprises multiple Connection Points, this point can be a Calculated Point which is sum of Connection Point measurements.","MVAr","AI","Signed 16 Bit",null,32,2,0.01,10001,100.01,-10001,-100.01]
[null,"Registered Facility Maximum Active Power Capacity","Yes","Yes","Yes","nnn MAX OPERATING LIMIT","The real-time maximum sent-out capability of the Facility in MW","MW","AI","Signed 16 Bit",null,32,2,1,24001,24001,-1,-1]
[null,"Registered Facility Minimum Active Power Capacity","Yes","Yes","Yes","nnn MIN OPERATING LIMIT","The real-time minimum sent-out capability of the Facility in MW. This value can be negative to represent maximum Withdrawal capability of load or bidirectional Registered Facilities.","MW","AI","Signed 16 Bit",null,32,2,1,24001,24001,-1,-1]
[null,"Registered Facility Maximum Ramp Up Capability","Yes","Yes","Yes","nnn MAX RAMP RATE UP",null,"MW/MIN","AI","Signed 16 Bit",null,32,2,0.01,10001,100.01,-1,-0.01]
[null,"Registered Facility Maximum Ramp Down Capability","Yes","Yes","Yes","nnn MAX RAMP RATE DOWN",null,"MW/MIN","AI","Signed 16 Bit",null,32,2,0.01,-1,-0.01,-10001,-100.01]
[null,"Registered Facility Current Active Ramp Rate In Use","Yes","Yes","Yes","nnn RAMP RATE IN USE ",null,"MW/MIN","AI","Signed 16 Bit",null,32,2,0.01,-1,-0.01,-4890,-48.9]
[null,"Active Power For Each Primary Transmission Device In The Registered Facility","Yes","Yes","Yes","nnn X MW","E.g. step-up transformer, feeder/collector, transmission line","MW","AI","Signed 16 Bit",null,32,2,0.01,4900,49,-1,-0.01]
[null,"Reactive Power For Each Primary Transmission Device In The Registered Facility","Yes","Yes","Yes","nnn X MVAR","E.g. step-up transformer, feeder/collector, transmission line.","MVAR","AI","Signed 16 Bit",null,32,2,0.01,4900,49,-4900,-49]
[null,"Aggregate Active Power For Auxiliary Loads Associated With Each Generating Unit In The Registered Facility","Yes","Yes","Optional ","nnn X AUX TX MW","This can be a Calculated Point","MW","AI","Signed 16 Bit",null,32,2,1E-3,1001,1.0010000000000001,-1001,-1.0010000000000001]
[null,"Aggregate Reactive Power For Auxiliary Loads Associated With Each Generating Unit In The Registered Facility","Yes","Yes","Optional ","nnn X AUX TX MVAR","This can be a Calculated Point","MVAR","AI","Signed 16 Bit",null,32,2,0.1,4001,400.1,-1,-0.1]
[null,"Overexcitation Limit For Each Relevant Device Within The Registered Facility","Yes","Yes","Optional ","nnn X OVEREXCITATION LIMIT","Not applicable to inverter connected devices.",null,"AI","Signed 16 Bit",null,32,2,0.01,4900,49,-4900,-49]
[null,"Underexcitation Limit For Each Relevant Device Within The Registered Facility","Yes","Yes","Optional ","nnn X UNDEREXCITATION LIMIT","Not applicable to inverter connected devices",null,"AI","Signed 16 Bit",null,32,2,1E-3,-1001,-1.0010000000000001,1001,1.0010000000000001]
[null,"Generation Feeder Mw","Yes","Yes","Optional ","nnn GX FEEDER MW","For each feeder containing a generating unit or energy producing device.","MW","AI","Signed 16 Bit",null,32,2,0.1,4900,490,-1,-0.1]
[null,"Generation Feeder Mvar","Yes","Yes","Optional ","nnn GX FEEDER MVAR","For each feeder containing a generating unit or energy producing device.","MVAR","AI","Signed 16 Bit",null,32,2,0.01,10001,100.01,-1,-0.01]
[null,"Generation Feeder Current","Yes","Yes","Optional ","nnn RX FEEDER AMPS","For each feeder containing a generating unit or energy producing device.","A","AI","Signed 16 Bit",null,32,2,0.01,10001,100.01,-1,-0.01]
[null,"Reactive Feeder Mvar","Yes","Yes","Optional ","nnn RX FEEDER MVAR","For each feeder containing a reactive device.","MVAR"]
[null,"Reactive Feeder Current","Yes","Yes","Optional ","nnn X FEEDER AMPS ","For each feeder containing a reactive device.","A","AI","Signed 16 Bit",null,32,2,0.01,20001,200.01,-1,-0.01]
[null,"Generator Step-Up Transformer(S) Hv Voltage","Yes","Yes","Optional ","F GSUT X KV",null,"KV","AI","Signed 16 Bit",null,32,2,0.01,-1,-0.01,-5001,-50.01]
[null,"Generator Step-Up Transformer(S) Hv Mw","Yes","Yes","Optional ","F GSUT X MW",null,"MW","AI","Signed 16 Bit",null,32,2,0.01,-1,-0.01,-5001,-50.01]
[null,"Generator Step-Up Transformer(S) Hv Mvar","Yes","Yes","Optional ","F GSUT X MVAR ",null,"MVAR","AI","Signed 16 Bit",null,32,2,0.01,-1,-0.01,-5001,-50.01]
[null,"Generator Step-Up Transformer(S) Lv Voltage","See Notes","See Notes","Optional ","nnn GSUT X LV KV ","Depending on site configuration and synchronization/islanding arrangements.","KV","AI","Signed 16 Bit",null,32,2,0.01,5001,50.01,-1,-0.01]
[null,"Voltage Measurement At The Connection Point","Yes","Yes","Yes","nnn X KV","Typically a transmission line voltage measurement. If this value is already provided to AEMO by the Network Operator, it is not required to be provided by the Facility.","KV","AI","Signed 16 Bit",null,32,2,0.01,5001,50.01,-1,-0.01]
[null,"Reactive Device Available Reactive Mvar","Yes","Yes","Yes","nnn PLANT_NAME AVAILABLE REACTIVE MVAR","Current available reactive MVAR available from the device (e.g. STATCOM/SVC). Only relevant for Registered Facilities with additional reactive power devices installed. Where PLANT_NAME is the relevant piece of equipment (e.g. a synchronous condenser).","MVAR","AI","Signed 16 Bit",null,32,2,0.1,1001,100.10000000000001,-1,-0.1]
[null,"Reactive Device Available Capacitive Mvar","Yes","Yes","Yes","nnn PLANT_NAME AVAILABLE CAPACITVE MVAR","Current available capacitive MVAR available from the device (e.g. STATCOM/SVC). Only relevant for Registered Facilities with additional reactive power devices installed. Where PLANT_NAME is the relevant piece of equipment (e.g. a synchronous condenser).","MVAR","AI","Signed 16 Bit",null,32,2,0.1,1001,100.10000000000001,-1,-0.1]
[null,"Current Measurement At The Connection Point","Yes","Yes","Optional ","nnn X AMP","This can typically be a transmission line current measurement.","AMP","AI","Signed 16 Bit",null,32,2,0.1,1001,100.10000000000001,-1,-0.1]
[null,"Facility Hv Busbar Voltage Measurement","Yes","Yes","Yes","nnn BUS X KV","Where applicable","KV","AI","Signed 16 Bit",null,32,2,0.1,1001,100.10000000000001,-1,-0.1]
[null,"Facility Lv Busbar Voltage Measurement","Yes","Yes","Yes","nnn BUS X KV","Where applicable","KV","AI","Signed 16 Bit",null,32,2,0.1,1001,100.10000000000001,-1,-0.1]
[null,"Reactive Power Flow For Each Associated Reactive Power Device","Yes","Yes","Optional ","nnn PLANT_NAME MVAR","Only required where additional reactive power devices have been installed. Where PLANT_NAME is the relevant piece of equipment (e.g. synchronous condenser).","MVAR","AI","Signed 16 Bit",null,32,2,0.01,-1,-0.01,-10001,-100.01]
[null,"Facility Target Mvar/Pf/Kv","Yes","Yes","Yes","nnn MVAR CONTROL MODE\nnnn PF CONTROL MODE\nnnn KV CONTROL MODE","Current target setpoint for voltage control purposes (if applicable), fed back from the Registered Facility’s control system to AEMO.","MVAR/PF/KV","AI","Signed 16 Bit",null,32,2,0.01,10001,100.01,-1,-0.01]
[null,"Ambient Temperature (°C) ","Yes","Yes","Optional ","nnn AMBIENT TEMPERATURE",null,"°C","AI","Signed 16 Bit",null,32,2,0.01,-1,-0.01,-10001,-100.01]
[null,"Net Mw Facility Setpoint Back Indication Point ","Yes","Yes","Optional ","nnn DESIRED MW RECEIVED ",null,"MW","AI","Signed 16 Bit",null,32,2,0.01,10001,100.01,-1,-0.01]
[null,"Generator Terminal Voltage Control Back Indication Point ","Yes","Yes","Yes","nnn X DESIRED KV RECEIVED","If required by the Network Operator. This is a Back Indication Point. ","MW","AI","Signed 16 Bit",null,32,2,0.1,-1001,-100.10000000000001,2001,200.10000000000002]
[null,"Facility Available Net Mw","Yes","Yes","Yes","nnn NET AVAILABLE MW","MW available to export from the Facility if there were no active MW setpoint limiting the output. ","KV","AI","Signed 16 Bit",null,32,2,0.1,330,33,-1,-0.1]
[null,"Facility Local Limit Mw","Yes","Yes","Yes","nnn LOCAL LIMIT MW","Indicates the maximum output the facility can achieve accounting for any local limitations (e.g. temperature limitations, protection limitations, etc.)","MW","AI","Signed 16 Bit",null,32,2,0.1,330,33,-1,-0.1]
[null,"Target Net Load Setpoint","Yes","Yes","Optional ","nnn TARGET NET SETPOINT","Facility internal control system setpoint for the Facility net output. It is an indication to AEMO to show their current control system setpoint to their Facility output. ","MW","AI","Signed 16 Bit",null,32,2,0.01,15000,150,-15000,150]
[null,"Facility Desired Net Mw Received","Yes","Yes",null,"nnn DESIRED MW ","Back Indication ","MW","AI","Signed 16 Bit"]
[null,"Facility AGC Low Operation Limit Received","Optional","Optional","Optional","nnn LOW AGC LIMIT","Back Indication ","MW","AI","Signed 16 Bit"]
[null,"Facility AGC High Operation Limit Received","Optional","Optional","Optional","nnn HIGH AGC LIMIT","Back Indication ","MW","AI","Signed 16 Bit"]
[null,"Look-Ahead Dispatch Target Mw Received","Optional","Optional ","Optional","nnn LOOK-AHEAD MW ","Back Indication ","MW","AI","Signed 16 Bit"]
[null,"Generating Unit Turbine Speed","Yes - See Notes","Yes- See Notes","No","nnn GX TURBINE SPEED","Indication of the turbine speed associated with each generating unit in the Facility, measured as a %, where applicable to the relevant technology. "]
[null,"Facility Dispatch Target Net Mw Received","Optional","Optional ","Optional","nnn DISPATCH TARGET MW",null,"MW","AI","Signed 16 Bit"]
[null,"Facility Dispatch Target Ramp Rate Received","Optional","Optional ","Optional","nnn DISPATCH TARGET RAMP RATE MW/MIN",null,"MW/MIN","AI","Signed 16 Bit"]
[]
[]
[null,"Aditional Operational Data Point Requirements For Scheduled Facilities"]
[]
["m","Gas Turbines"]
[null,"Status Points"]
[null,"Point Description ","System Size ≥ 10 MW","System Size < 10 MW","Naming Convention ","Notes"]
[null,"Base/peak mode","Yes","Optional","nnn X OPERATING MODE","Or other operating modes as appropriate for the turbine"]
[null,"Droop enabled/blocked","Yes","Optional","nnn X DROOP MODE","Indicates whether “standard” droop is active on the generator"]
[null,"Ready to start","Yes","Optional","nnn X READY TO START","Indicates that the generator is in a ready to start date"]
[null,"Starting in progress","Yes","Optional","nnn X STARTING IN PROGRESS","Indicates when the generator is in the process of starting up"]
[null,"Rundown in progress ","Yes","Optional","nnn X RUNDOWN IN PROGRESS","Indicates when the generator is in the process of shutting down"]
[null,"At temperature limit indication","Yes","Optional","nnn X TEMPERATURE LIMIT","Indicates where a turbine has reached a temperature limit and can no longer increase output"]
[]
[]
["m","Steam Turbines"]
[null,"Status Points"]
[null,"Point Description ","System Size ≥ 10 MW","System Size < 10 MW","Naming Convention ","Notes"]
[null,"Turbine Mode","Yes","Optional","nnn X TURBINE MODE","Boiler follower/turbine follower"]
[null,"Droop enabled/blocked","Yes","Optional","nnn X DROOP MODE","Indicates whether “standard” droop is active on the generator"]
[null,"Excitation Mode","Yes","Optional","nnn X EXCITATION MODE","Auto/Manual"]
[null,"Starting in progress","Yes","Optional","nnn X STARTING IN PROGRESS","Indicates when the generator is in the process of starting up"]
[null,"Rundown in progress ","Yes","Optional","nnn X RUNDOWN IN PROGRESS","Indicates when the generator is in the process of shutting down"]
[]
[]
["m","Wind Generation"]
[null,"Measured Values"]
[null,"Point Description ","System Size ≥ 10 MW","System Size < 10 MW","Naming Convention ","Notes"]
[null,"Number of individual generation units available","Yes","Optional","nnn X AVAILABLE GENERATION UNITS"]
[null,"High wind alarms","Yes","Yes","nnn HIGH WIND ALARM","Indicates where one or more wind turbines are running back due to high wind conditions."]
[null,"Turbines stopped for high wind","Yes","Optional","nnn TURBINBES STOPPED FOR HIGH WIND","Number of turbines out of service for high wind. "]
[null,"Wind speed at nacelle height (kn/h)","Yes","Optional","nnn WIND SPEED KMH","Where a wind farm has significant geographic diversity, multiple wind speed measurements may be required to account for distinct groups of turbines with differing characteristics within the wind farm. This value should be an average of every nacelle or group of nacelles.\n\nIf measurement at the nacelle height is unavailable, then at a nominated height no less than 60% of the nacelle height is acceptable."]
[null,"Wind direction at nacelle height (°)","Yes","Optional","nnn WIND DIRECTION DEG","Indicates when the generator is in the process of shutting down."]
[null,"Ambient dry bulb temperature (°C)","Yes","Optional","nnn AMBIENT DRY BULB TEMP DEG C","These data points are only required from one measurement site at each facility. If the Facility is a hybrid Facility, one set of these data points for the entire Facility is sufficient. All values should be taken at ground level or within 3m of such. "]
[null,"Air pressure (hPa)","Yes","Optional","nnn AIR PRESSURE HPA"]
[null,"Relative humidity (%) or dew point (°C)","Yes","Optional","nnn RELATIVE HUMIDITY"]
[null,"Temperature at nacelle height (°C)","Yes","Optional","nnn TEMPERATURE DEG C","Average across Facility"]
[null,"Maximum of temperatures at nacelle height (°C)","Yes","Optional","nnn MAX TEMPERATURE DEG C","The maximum value from the sensors that comprise readings that contribute to the average value. "]
[null,"Maximum of wind speeds at nacelle height (km/h)","Yes","Optional","nnn MAX WIND SPEED KMH","The maximum value from the sensors that comprise readings within the average value "]
[]
[]
["m","Solar PV Generation"]
[null,"Measured Values"]
[null,"Point Description ","System Size ≥ 10 MW","System Size < 10 MW","Naming Convention ","Notes"]
[null,"Number of individual units available for service","Yes","Optional","nnn SOLAR INVERTERS AVAILABLE","Depending on the arrangement of the Facility, this may be by the inverter or collector. "]
[null,"Solar irradiance (W/m2 ) - horizontal","Yes","Optional","nnn HORIZONTAL IRRADIANCE","This value must be the average of all the sensors on the site such that no individual sensor is weighted to represent more than 10MWp of capacity installed. E.g. a 40MW site will require at least 4 sensors."]
[null,"Solar irradiance (W/m2 ) – inclined plane","Yes","Optional","nnn INCLINED IRRADIANCE","This value must be the average of all the sensors on the site such that no one sensor is weighted to represent more than 10MWp of capacity installed. E.g. a 40MW site will require at least 4 sensors.\n\nThis value should represent the irradiance on the tracking surface."]
[null,"Tracking angle(s) (° from horizontal)","Yes","Optional","nnn TRACKERS AVG ANGLE","This is the angle between the current position and horizontal. Only required for facilities that include single-axis or dual-axis tracking."]
[null,"Tracking orientation (° East of North)","Yes","Optional","nnn TRACKERS AVG ORIENT","Orientation for single axis and fixed or semi-fixed arrays can be provided in standing data instead if it is constant. Dual Axis tracking systems must provide this."]
[null,"Air temperature (°C, dry bulb)","Yes","Optional","nnn AMBIENT TEMPERATURE","Multiple Operational Data Points may be required where the Registered Facility is geographically dispersed, and significant variations in temperature across the site are possible."]
[null,"Module surface temperature (°C)","Yes","Optional","nnn MODULE TEMPERATURE","Average for modules. Multiple Operational Data Points may be required where the Registered Facility is geographically dispersed, and significant variations in temperature across the site are possible."]
[]
[]
["m","Electric Storage Resources"]
[null,"Measured Values"]
[null,"Point Description ","System Size ≥ 10 MW","System Size < 10 MW","Naming Convention ","Notes"]
[null,"Number of individual units available for service","Yes","Optional","nnn INVERTERS AVAILABLE","Where the Registered Facility consists of multiple, distint inverters or Electrical Storage Resources. It may also be called \"nnn UNITS AVAILABLE\" for non-inverter based technologies. "]
[null,"Charging/discharging mode","If applicable - See Notes","Optional","nnn CHARGING MODE","This Operational Data Point is only required if the Registered Facility has distinct charging/discharging modes that significantly alter the operational capabilities of the Registered Facility, and where the process for changing modes takes longer than 10 seconds."]
[null,"Charging efficiency (%)","Yes","Optional","nnn CHARGING EFFICIENCY","These may be a single Operational Data Point where these values typically differ by less than 2%."]
[null,"Discharging efficiency (%)","Yes","Optional","nnn DISCHARGING EFFICIENCY"]
[null,"Grid following/grid forming mode","Optional ","Optional","nnn INVERTER MODE","May be required for the provision of certain Essential System Services by the Registered Facility. "]
[null,"Available discharge capability(MWh)","Yes","Optional - See Notes","nnn AVAILABLE DISCHARGE","The usable energy (in MWh) stored in the Facility and capable of being Injected to the Network under prevailing conditions, but at maximum discharge rates. That is, accounting for any minimum state of charge requirements for the Facility.\n\nFor a Registered Facility with a System Size < 10 MW, this point is optional,\nbut is required if the Registered Facility wishes to opt into storage constraints under clause 7.5.9 of the WEM Rules, or if the Registered Facility is a Scheduled Facility or Semi-Scheduled Facility."]
[null,"Available charge capability(MWh)","Yes","Optional - See Notes","nnn AVAILABLE CHARGE","The remaining capability for the Energy Storage Resource to Withdraw energy from the network and store it in (MWh) under prevailing conditions, but at maximum charge rates. That is, accounting for any maximum state of charge requirements for the Facility.\n\nFor a Registered Facility with a System Size < 10 MW, this point is optional,\nbut is required if the Registered Facility wishes to opt into storage constraints under clause 7.5.9 of the WEM Rules, or if the Registered Facility is a Scheduled Facility or Semi-Scheduled Facility."]
[null,"Ambient dry bulb temperature (°C)","Yes","Optional ","nnn AMBIENT TEMPERATURE","These data points are only required once for the Facility. If the Facility is a hybrid Facility, one set of these weather data points for the entire Facility may be sufficient. Measured within 4 m of ground level."]
[null,"Relative humidity (%) or dew point (°C)","Yes","Optional","nnn RELATIVE HUMIDITY \nnnn DEW POINT"]
[null,"Module temperature (°C)","Yes","Optional ","nnn MODULE TEMPERATURE"]
[null,"Derated Available tag (10minutes, MW) ","Optional ","Optional ","nnn 10 MIN AVAILABLE CAPACITY","The maximum amount the storage Facility could send out at a constant MW output in the next 10 minutes."]
[null,"Derated Available tag (30minutes, MW)","Optional ","Optional ","nnn 30 MIN AVAILABLE CAPACITY","The maximum amount the storage Facility could send out at a constant MW output in the next 30 minutes."]
[null,"Measured frequency","Optional ","Optional ","nnn CP FREQUENCY","The frequency as measured at the connection point, or as seen by the park controller. Alternatively, if park controller reading isn’t available, inverter level is acceptable."]
[]
[]
["m","Fast Start Facitlites"]
[null,"Status Outputs"]
[null,"Point Description ","Point Type","Units","Update Rate","Requirement","Notes"]
[null,"FSIP mode (enabled/disabled)","DO","-","On change ","Optional ","Indicates whether the Registered Facility has been specified as fast start in the real-time submission for the current Dispatch Interval."]
[null,"Facility fast start signal (Option 1)","DO","-","4 seconds","Yes","A digital setpoint to which AEMO issues a signal upon a Fast Start Facility being dispatched as per the Central Dispatch process."]
[null,"Facility fast start signal (Option 2)","DO","-","4 seconds","Yes","As an alternative to a digital setpoint, AEMO can issue a specific value to an analogue setpoint to signal a Fast Start Facility dispatch. This can be an existing analogue setpoint used for another purpose (e.g. the Desired MW Setpoint), provided the Registered Facility control system can treat the different signals appropriately."]
[null,"Status Inputs"]
[null,"Point Description ","Point Type","Units","Update Rate","Requirement","Notes"]
[null,"Facility fast start signal (Option 1)","DI","-","4 seconds","Yes","Feedback for the “Facility fast start signal”, providing AEMO indication that the Registered Facility has received an instruction to start."]
[null,"Facility fast start signal (Option 2)","DI","-","4 seconds","Yes","As above, but in analogue form."]
[]
[]
["m","Interuptible Loads"]
[null,"Status"]
[null,"Point Description ","Requirement","Naming Convention","Notes"]
[null,"Relay/scheme activation status","Yes","nnn CB X","Where AEMO requires monitoring of multiple relays or schemes, there should be one point for each of these. "]
[null,"Relay/scheme operated","Yes","nnn X RELAY OPERATED","Where AEMO requires monitoring of multiple relays or schemes, there should be one point for each of these. "]
[null,"Alarms"]
[null,"Point Description ","Requirement","Naming Convention","Notes"]
[null,"Communications link(s) fail","Yes","nnn DCS COMMS LINK FAIL ","As an alternative to a digital setpoint, AEMO can issue a specific value to an analogue setpoint to signal a Fast Start Facility dispatch. This can be an existing analogue setpoint used for another purpose (e.g. the Desired MW Setpoint), provided the Registered Facility control system can treat the different signals appropriately."]
[null,"Measured and Calculated Telemetry"]
[null,"Point Description ","Requirement","Naming Convention","Notes"]
[null,"Gross active power measurement of each relay/scheme","See Notes","nnn X GROSS MW","This point should measure the total, gross active power consumed by the connections that form part of the Interuptible Load, where this is meaningful measurement. It is not intentended to represent  the currently available load for interuption, which should instead be communicated to AEMO via an appropriate Real -Time Market Submission. "]
[null,"Gross reactive power measurement of each relay/scheme","See Notes","nnn X GROSS MVAR","This point should measure the total, gross reactive power consumed by the connections that form part of the Interruptible Load, where this is meaningful measurement."]
[null,"Net active power measurement of each relay/scheme","See Notes","nnn X NET MW","This point should measure the total, net active power consumed by the connections that form part of the Interruptible Load, where this is meaningful measurement. It is not intended to represent the currently available load for interruption, which should instead be communicated to AEMO via an appropriate Real-Time Market Submission."]
[null,"Net reactive power measurement of each relay/scheme","See Notes","nnn X NET MVAR","This point should measure the total, Gross reactive power consumed by the connections that form part of the Interruptible Load, where this is meaningful measurement."]
[null,"Relay Voltage ","See Notes","nnn X KV","Only where the relay or scheme is transmission-connected. "]
[null,"Controls"]
[null,"Point Description ","Requirement","Naming Convention","Notes"]
[null,"Scheme/Relay frequency trip threshold","See Notes","nnn DESIRED TRIP HZ","This point is intended for AEMO to communicate the desired frequency threshold below which a scheme/relay should operate (e.g. 49.5 Hz). Where AEMO has determined multiple desired frequency thresholds, there should be an individual point for each threshold."]
[]
[]
["m","UFLS"]
[null,"Status"]
[null,"Point Description ","Requirement","Naming Convention","Notes"]
[null,"UFLS Load_X stage selection","Yes","nnn UFLS Load_X stage ","This is the back indication selection status for the first block of UFLS load (1-5, OFF).  Back Indication of the UFLS stage allocations (i.e. 1,2,3,4,5, OFF) for each UFLS stage is required. "]
[null,"UFLS Scheme status","Yes","nnn X UFLS scheme enabled","This is the back indication status of the UFLS scheme (Enabled/Disabled)."]
[null,"UFLS Load Defective","Yes","nnn UFLS Load_X defective","Alarm indication for defective equipment for the first block of ULFS load. "]
[null,"UFLS Load Operated","Yes","nnn UFLS Load-X operated","Alarm indication for the operation of first block of UFLS load. "]
[null,"Measured and Calculated Telemetry"]
[null,"Point Description ","Requirement","Naming Convention","Notes"]
[null,"UFLS stage load shedding quantity","Yes","nnn UFLS load _1 MW","The MW directional measurements of each of the UFLS load shedding stages, this is the real time UFLS load shedding measurement for first block of UFLS load. "]
[null,"Controls"]
[null,"Point Description ","Requirement","Naming Convention","Notes"]
[null,"UFLS Reset","Yes","nnn UFLS Reset","Ability to send a remote -control signal from Western Power to reset the UFLS scheme, post UFLS operation. This is to allow for the restoration of loads that operated under an UFLS event. "]
[null,"UFLS Enanble","Yes","nnn UFLS Enabled","Ability to send a remote -control signal from Western Power to enable the UFLS scheme. "]
[null,"UFLS Disbale ","Yes","nnn UFLS Disabled","Ability to send a remote -control signal from Western Power to disable the UFLS scheme. "]
[null,"UFLS load stage selection","Yes","nnn UFLS Load_X stage ","Ability to send a remote-control signal from Western Power to reallocated the UFLS stage for a UFLS load shedding stage. "]
[]
[]
["m","ELPS"]
[null,"Status"]
[null,"Point Description ","Requirement","Naming Convention","Notes"]
[null,"Curtailable Load Disconnected","Yes","nnn CB X","Load connected to Western Power.\n\nWhere possible this input should be the open breaker status for the curtailable load connection.\n\nWhere load is connected through several breaker statuses these can be brought back as individual points to Western Power or combined by the customer into a single load connection status."]
[null,"DCS Communications Fail ","Yes","nnn_DCS Comms Fail ","Customer DCS System communication has failed or unable to respond from Western Power. "]
[null,"Load Control Equipment Defective","Yes","nnn_Load Control Equipment Defective","When the customer system is defective and may be unable to respond to controls from Western Power"]
[null,"Load Permissive Enabled","Yes","nnn_Load Permissive Enabled","Feedback from Control Load Permissive CMD"]
[null,"Load Control Recloser Communication Fail",null,"nnn_Load Control Recloser Communication Fail","If WPC recloser is required."]
[null,"Load Control Recloser Defective",null,"nnn_Load Control Recloser Defective","If WPC recloser is required."]
[null,"Load Control Recloser Trip",null,"nnn_Load Control Recloser Trip","If WPC recloser is required."]
[null,"Load Control Recloser Backup Trip",null,"nnn_Load Control Recloser Backup Trip","If WPC recloser is required."]
[null,"Controls"]
[null,"Point Description ","Requirement","Naming Convention","Notes"]
[null,"Control Output to Customer ","Yes","nnn_Permissive Load Enable CMD \n\nnnn_Permissive Load Disable CMD","Non-dispatchable load must be reduced at agreed ramp rates or times and connected/disconnected from Western Power "]
[null,"Control Output to Customer","Yes","nnn_Emergency Stop CMD","Curtailable load must immediately trip off from Western Power"]
[]
[]
["m","Non-exporting/PPG"]
[null,"Status"]
[null,"Point Description ","Requirement","Naming Convention","Notes"]
[null,"PPG Customer Main Switch","Yes","nnn PPG CMS X","Customer Main Switch. Include any ISOLATOR and EARTH SWITCH (ABS &ES) @ CMS"]
[null,"PPG Generator Main Switch","Yes","nnn PPG GMS X","Generator Main Switch."]
[null,"PPG Customer Paralleling Switch","Yes","nnn PPG CPS X","Customer Paralleling Switch."]
[null,"PPG GMS Close permissive command","Yes","nnn PPG CLOSE GEN SWITCHES","Close Enable permissive signal for GMS1, GM2 etc. Enabled=1, Disabled=0."]
[null,"PPG Protection Operation alarm","Yes","nnn PPG PROTECTION OPERATED","Common alarm, any Protection alarm that will TRIP off load/generation."]
[null,"PPG Equipment Defective alarm","Yes","nnn PPG BATTERY/PROTECTION DEFECTIVE","Common alarm for site. Any fault on battery AND Protection system."]
[null,"PPG Communications failure alarm","Yes","nnn PPG SLAVE RTU FAIL","Generated by Western Power on loss of comms to PPG."]
[null,"PPG Communications heartbeat","Yes","nnn PPG RTU COMMS LINK HEARTBEAT","WP to PPG Comms link heartbeat feedback. Internal point."]
[null,"PPG Communication fail intertrip function enable/disable","Yes","nnn PPG COMMS FAIL INTERTRIP","Enable/Disable signal for comms fail logic. Enable=0, Disable=1."]
[null,"Measured and Calculated Telemetry"]
[null,"Point Description ","Requirement","Naming Convention","Notes"]
[null,"PPG Customer Main Switch Voltage","Yes","nnn PPG CMS X VOLTAGE","Customer Main Switch line Voltage"]
[null,"PPG Customer Main Switch MegaWatts","Yes","nnn PPG CMS X MEGAWATTS","Customer Main Switch line Megawatss"]
[null,"PPG Customer Main Switch MegaVars","Yes","nnn PPG CMS X MEGAVARS","Customer Main Switch line Megavars"]
[null,"PPG Customer Main Switch Current","Yes","nnn PPG CMS X CURRENT","Customer Main Switch line Current"]
[null,"PPG Generator Main Switch MegaWatts","Yes","nnn PPG GMSX MEGAWATTS","Generator X Megawatt output. Required per GMS."]
[null,"PPG Generator Main Switch MegaVars","Yes","nnn PPG GMSX MEGAVARS","Generator X Megavar output. Required per GMS."]
[null,"Controls"]
[null,"Point Description ","Requirement","Naming Convention","Notes"]
[null,"PPG OFF Command","Yes","nnn PPG OFF","Single Trip signal for TRIPPING GMS1, GMS2, GMSx..."]
[null,"PPG GMS Close permissive command","Yes","nnn PPG CLOSE GEN SWITCHES","Close Enable permissive signal for GMS1, GM2 etc"]
[null,"PPG Comms fail heartbeat","Yes","nnn PPG RTU COMMS LINK HEARTBEAT","WP to PPG Comms Watchdog"]
[null,"PPG Communication fail intertrip function enable/disable command","Yes","nnn PPG COMMS FAIL INTERTRIP","Enable/Disable signal for comms fail logic. "]

{"sheet":"Analogue","index":4,"n_rows":110,"n_cols":19,"rows_kept":110,"cut":false,"hidden":true,"merged":[]}
["Network Operations Naming Convention","Type","Template Type","Greater 10 MW","Less 10 MW","Scheduled Facility ","Semi-Scheduled Facility","Non-Scheduled Facility","Unit","Command/Point Type","Object","Variant","Scaling","Max Value","Max Eng Value","Min Value","Min Eng Value","Function/Comments","Unregistered"]
["nnn X GROSS MW","AI","BASE","Yes","Yes","Yes","Yes","Optional ","MW","Signed 16 Bit",32,2,0.01,10001,100.01,-10001,-100.01,"Where one or more of the Energy Producing Systems within the Registered Facility are inverter connected, these values should measure the AC side of the inverter, or collection of inverters as appropriate. Where a collector group has a gross capacity of more than 1 MW, it should generally be measured separately, and not grouped with other collectors for telemetry purposes.","No"]
["nnn X GROSS MVAR","AI","BASE","Yes","Yes","Yes","Yes","Optional ","MW","Signed 16 Bit",32,2,0.01,10001,100.01,-10001,-100.01,"Where the Energy Producing System is inverter connected, these values should measure the AC side of the inverter, or collection of inverters as appropriate","No"]
["nnn X NET MW","AI","BASE","Yes","Yes","Yes","Yes","Optional ","MVAr","Signed 16 Bit",32,2,0.01,10001,100.01,-10001,-100.01,"Where the Facility is inverter connected, these values should measure the AC side of the inverter. If this value measures a collection of inverters, a measurement at the high voltage side of the group’s step up transformer is acceptable.","No"]
["nnn X NET MVAR","AI","BASE","Yes","Yes","Yes","Yes","Optional ","MW","Signed 16 Bit",32,2,1,24001,24001,-1,-1,"Where the Facility is inverter connected, these values should measure the AC side of the inverter, or collection of inverters as appropriate.","No"]
["nnn X KV","AI","BASE","Yes","Yes","Yes","Yes","Yes","MVAr","Signed 16 Bit",32,2,0.01,-1,-0.01,-10001,-100.01,"If the relevant Energy Producing System has a stator","No"]
["nnn X TARGET KV","AI","BASE","Yes","Yes","Yes","Yes","Optional ","kV","Signed 16 Bit",32,2,0.01,10001,100.01,-1,-0.01,"If applicable, current generator terminal target voltage","No"]
["nnn GROSS MW","AI","BASE","Yes","Yes","Yes","Yes","Optional ","kV","Signed 16 Bit",32,2,0.01,10001,100.01,-10001,-100.01,"Where a Facility comprises of more than one Energy Producing System. This can be a Calculated Point.","No"]
["nnn GROSS MVAR","AI","BASE","Yes","Yes","Yes","Yes","Optional ","MVAr","Signed 16 Bit",32,2,0.01,10001,100.01,-10001,-100.01,"Where a Facility comprises of more than one Energy Producing System. This can be a Calculated Point.","No"]
["nnn NET MW","AI","BASE","Yes","Yes","Yes","Yes","Optional ","MW","Signed 16 Bit",32,2,0.01,10001,100.01,-10001,-100.01,"Where a Facility comprises multiple Connection Points, this point can be a Calculated Point which is sum of Connection Point measurements.","No"]
["nnn NET MVAR","AI","BASE","Yes","Yes","Yes","Yes","Optional ","MVAr","Signed 16 Bit",32,2,0.01,10001,100.01,-10001,-100.01,"Where a Facility comprises multiple Connection Points, this point can be a Calculated Point which is sum of Connection Point measurements.","No"]
["nnn MAX OPERATING LIMIT","AI","BASE","Yes","Yes","Yes","Yes","Yes","MW","Signed 16 Bit",32,2,1,24001,24001,-1,-1,"The real-time maximum sent-out capability of the Facility in MW","No"]
["nnn MIN OPERATING LIMIT","AI","BASE","Yes","Yes","Yes","Yes","Yes","MW","Signed 16 Bit",32,2,1,24001,24001,-1,-1,"The real-time minimum sent-out capability of the Facility in MW. This value can be negative to represent maximum Withdrawal capability of load or bidirectional Registered Facilities.","No"]
["nnn MAX RAMP RATE UP","AI","BASE","Yes","Yes","Yes","Yes","Yes","MW/MIN","Signed 16 Bit",32,2,0.01,10001,100.01,-1,-0.01,null,"No"]
["nnn MAX RAMP RATE DOWN","AI","BASE","Yes","Yes","Yes","Yes","Yes","MW/MIN","Signed 16 Bit",32,2,0.01,-1,-0.01,-10001,-100.01,null,"No"]
["nnn RAMP RATE IN USE","AI","BASE","Yes","Yes","Yes","Yes","Yes","MW/MIN","Signed 16 Bit",32,2,0.01,-1,-0.01,-4890,-48.9,null,"No"]
["nnn X MW","AI","BASE","Yes","Yes","Yes","Yes","Yes","MW","Signed 16 Bit",32,2,0.01,4900,49,-1,-0.01,"E.g. step-up transformer, feeder/collector, transmission line","No"]
["nnn X MVAR","AI","BASE","Yes","Yes","Yes","Yes","Yes","MVAR","Signed 16 Bit",32,2,0.01,4900,49,-4900,-49,"E.g. step-up transformer, feeder/collector, transmission line.","No"]
["nnn X AUX TX MW","AI","BASE","Yes","Yes","Yes","Yes","Optional ","MW","Signed 16 Bit",32,2,1E-3,1001,1.0010000000000001,-1001,-1.0010000000000001,"This can be a Calculated Point","No"]
["nnn X AUX TX MVAR","AI","BASE","Yes","Yes","Yes","Yes","Optional ","MVAR","Signed 16 Bit",32,2,0.1,4001,400.1,-1,-0.1,"This can be a Calculated Point","No"]
["nnn X OVEREXCITATION LIMIT","AI","BASE","Yes","Yes","Yes","Yes","Optional ",null,"Signed 16 Bit",32,2,0.01,4900,49,-4900,-49,"Not applicable to inverter connected devices.","No"]
["nnn X UNDEREXCITATION LIMIT","AI","BASE","Yes","Yes","Yes","Yes","Optional ",null,"Signed 16 Bit",32,2,1E-3,-1001,-1.0010000000000001,1001,1.0010000000000001,"Not applicable to inverter connected devices","No"]
["nnn GX FEEDER MW","AI","BASE","Yes","Yes","Yes","Yes","Optional ","MW","Signed 16 Bit",32,2,0.1,4900,490,-1,-0.1,"For each feeder containing a generating unit or energy producing device.","No"]
["nnn GX FEEDER MVAR","AI","BASE","Yes","Yes","Yes","Yes","Optional ","MVAR","Signed 16 Bit",32,2,0.01,10001,100.01,-1,-0.01,"For each feeder containing a generating unit or energy producing device.","No"]
["nnn RX FEEDER AMPS","AI","BASE","Yes","Yes","Yes","Yes","Optional ","A","Signed 16 Bit",32,2,0.01,10001,100.01,-1,-0.01,"For each feeder containing a generating unit or energy producing device.","No"]
["nnn RX FEEDER MVAR","AI","BASE","Yes","Yes","Yes","Yes","Optional ","MVAR","Signed 16 Bit",32,2,0.01,10001,100.01,-1,-0.01,"For each feeder containing a reactive device.","No"]
["nnn X FEEDER AMPS","AI","BASE","Yes","Yes","Yes","Yes","Optional ","A","Signed 16 Bit",32,2,0.01,20001,200.01,-1,-0.01,"For each feeder containing a reactive device.","No"]
["nnn GSUT X KV","AI","BASE","Yes","Yes","Yes","Yes","Optional ","KV","Signed 16 Bit",32,2,0.01,-1,-0.01,-5001,-50.01,null,"No"]
["nnn GSUT X MW","AI","BASE","Yes","Yes","Yes","Yes","Optional ","MW","Signed 16 Bit",32,2,0.01,-1,-0.01,-5001,-50.01,null,"No"]
["nnn GSUT X MVAR","AI","BASE","Yes","Yes","Yes","Yes","Optional ","MVAR","Signed 16 Bit",32,2,0.01,-1,-0.01,-5001,-50.01,null,"No"]
["nnn GSUT X LV KV","AI","BASE","Yes","Yes","See Notes","See Notes","Optional ","KV","Signed 16 Bit",32,2,0.01,5001,50.01,-1,-0.01,"Depending on site configuration and synchronization/islanding arrangements.","No"]
["nnn X KV","AI","BASE","Yes","Yes","Yes","Yes","Yes","KV","Signed 16 Bit",32,2,0.01,5001,50.01,-1,-0.01,"If the relevant Energy Producing System has a stator","No"]
["nnn PLANT_NAME AVAILABLE REACTIVE MVAR","AI","BASE","Yes","Yes","Yes","Yes","Yes","MVAR","Signed 16 Bit",32,2,0.1,1001,100.10000000000001,-1,-0.1,"Current available reactive MVAR available from the device (e.g. STATCOM/SVC). Only relevant for Registered Facilities with additional reactive power devices installed. Where PLANT_NAME is the relevant piece of equipment (e.g. a synchronous condenser).","No"]
["nnn PLANT_NAME AVAILABLE CAPACITVE MVAR","AI","BASE","Yes","Yes","Yes","Yes","Yes","MVAR","Signed 16 Bit",32,2,0.1,1001,100.10000000000001,-1,-0.1,"Current available capacitive MVAR available from the device (e.g. STATCOM/SVC). Only relevant for Registered Facilities with additional reactive power devices installed. Where PLANT_NAME is the relevant piece of equipment (e.g. a synchronous condenser).","No"]
["nnn X AMP","AI","BASE","Yes","Yes","Yes","Yes","Optional ","AMP","Signed 16 Bit",32,2,0.1,1001,100.10000000000001,-1,-0.1,"This can typically be a transmission line current measurement.","No"]
["nnn BUS X KV","AI","BASE","Yes","Yes","Yes","Yes","Yes","KV","Signed 16 Bit",32,2,0.1,1001,100.10000000000001,-1,-0.1,"Where applicable","No"]
["nnn BUS X KV","AI","BASE","Yes","Yes","Yes","Yes","Yes","KV","Signed 16 Bit",32,2,0.1,1001,100.10000000000001,-1,-0.1,"Where applicable","No"]
["nnn PLANT_NAME MVAR","AI","BASE","Yes","Yes","Yes","Yes","Optional ","MVAR","Signed 16 Bit",32,2,0.01,-1,-0.01,-10001,-100.01,"Only required where additional reactive power devices have been installed. Where PLANT_NAME is the relevant piece of equipment (e.g. synchronous condenser).","No"]
["nnn AMBIENT TEMPERATURE","AI","BASE","Yes","Yes","Yes","Yes","Optional ","°C","Signed 16 Bit",32,2,0.01,-1,-0.01,-10001,-100.01,null,"No"]
["nnn DESIRED MW RECEIVED","AI","BASE","Yes","Yes","Yes","Yes","Optional ","MW","Signed 16 Bit",32,2,0.01,10001,100.01,-1,-0.01,null,"No"]
["nnn X DESIRED KV RECEIVED","AI","BASE","Yes","Yes","Yes","Yes","Yes","MW","Signed 16 Bit",32,2,0.1,-1001,-100.10000000000001,2001,200.10000000000002,"If required by the Network Operator. This is a Back Indication Point. ","No"]
["nnn NET AVAILABLE MW","AI","BASE","Yes","Yes","Yes","Yes","Yes","KV","Signed 16 Bit",32,2,0.1,330,33,-1,-0.1,"MW available to export from the Facility if there were no active MW setpoint limiting the output. ","No"]
["nnn LOCAL LIMIT MW","AI","BASE","Yes","Yes","Yes","Yes","Yes","MW","Signed 16 Bit",32,2,0.1,330,33,-1,-0.1,"Indicates the maximum output the facility can achieve accounting for any local limitations (e.g. temperature limitations, protection limitations, etc.)","No"]
["nnn TARGET NET SETPOINT","AI","BASE","Yes","Yes","Yes","Yes","Optional ","MW","Signed 16 Bit",32,2,0.01,15000,150,-15000,150,"Facility internal control system setpoint for the Facility net output. It is an indication to AEMO to show their current control system setpoint to their Facility output. ","No"]
["nnn DESIRED MW","AI","BASE","Yes","Yes","Yes","Yes",null,"MW","Signed 16 Bit",32,2,"TBA","TBA","TBA","TBA","TBA","Back Indication ","No"]
["nnn LOW AGC LIMIT","AI","BASE","Yes","Yes","Optional","Optional","Optional","MW","Signed 16 Bit",32,2,"TBA","TBA","TBA","TBA","TBA","Back Indication ","No"]
["nnn HIGH AGC LIMIT","AI","BASE","Yes","Yes","Optional","Optional","Optional","MW","Signed 16 Bit",32,2,"TBA","TBA","TBA","TBA","TBA","Back Indication ","No"]
["nnn LOOK-AHEAD MW","AI","BASE","Yes","Yes","Optional","Optional ","Optional","MW","Signed 16 Bit",32,2,"TBA","TBA","TBA","TBA","TBA","Back Indication ","No"]
["nnn DISPATCH TARGET MW","AI","BASE","Yes","Yes","Optional","Optional ","Optional","MW","Signed 16 Bit",32,2,"TBA","TBA","TBA","TBA","TBA",null,"No"]
["nnn DISPATCH TARGET RAMP RATE MW/MIN","AI","BASE","Yes","Yes","Optional","Optional ","Optional","MW/MIN","Signed 16 Bit",32,2,"TBA","TBA","TBA","TBA","TBA",null,"No"]
["nnn GX TURBINE SPEED","AI","BASE","Yes","Yes","Yes","Yes","No","%","Signed 16 Bit",32,2,"TBA","TBA","TBA","TBA","TBA","Indication of the turbine speed associated with each generating unit in the Facility, measured as a %, where applicable to the relevant technology. ","No"]
["nnn X DESIRED KV","AO","BASE","Yes","Yes","See Notes","See Notes","See Notes","KV","SBO",40,2,"TBA","TBA","TBA","TBA","TBA","If required by the Network Operator.\nThis setpoint requires a Back-Indication Point","No"]
["nnn AGC CONTROL MODE","AO","BASE","Yes","Yes","Yes","Yes","Yes (As applicable) - See Notes",null,"SBO",40,2,0.1,1300,130,0,0,"The current AGC mode that AEMO is dispatching the Registerd Facility under. This setpoint is issued on-change.","No"]
["nnn LOW AGC LIMIT","AO","BASE","Yes","Yes","Optional ","Optional ","Optional- See Notes","MW","SBO",40,2,0.01,-1,-0.01,-10001,-100.01,"Back Indication ","No"]
["nnn HIGH AGC LIMIT","AO","BASE","Yes","Yes","Optional ","Optional ","Optional- See Notes","MW","SBO",40,2,0.01,10001,100.01,-1,-0.01,"Back Indication ","No"]
["nnn ACTUAL MW","AO","BASE","Yes","Yes","Optional ","Optional ","Optional- See Notes","MW","SBO",40,2,0.01,10001,100.01,-10001,-100.01,"The current Registered Facility’s loading as seen from the master station. This setpoint is issued periodically at a configurable time interval.\n\nRaw 1 = -2. MW\nRaw 14 = +2. MW","No"]
["nnn BASEPOINT MW","AO","BASE","Yes","Yes","Optional ","Optional ","Optional- See Notes","MW","SBO",40,2,0.01,10001,100.01,-10001,-100.01,"The current basepoint used by AGC, which is the value to which a Registered Facility would be dispatched when participating in energy only. This setpoint is issued on-change.\n\nRaw 1 = -2. MW\nRaw 14 = +2. MW","No"]
["nnn LOOK-AHEAD MW","AO","BASE","Yes","Yes","Optional ","Optional ","Optional- See Notes","MW","SBO",40,2,0.01,10001,100.01,-10001,-100.01,"Back Indication ","No"]
["nnn DISPATCH TARGET MW","AO","BASE","Yes","Yes","Optional ","Optional ","Optional- See Notes","MW",null,null,null,null,null,null,null,null,null,"No"]
["nnn DISPATCH TARGET RAMP RATE","AO","BASE","Yes","Yes","Optional ","Optional ","Optional- See Notes","MW/min","SBO",40,2,1,24001,24001,-1,-1,"Facilities are required to ramp linearly between Dispatch Targets unless directed otherwise. Optionally, AEMO can issue an EOI Dispatch Target and a desired Ramp Rate if this point is available.\n\nIf present, it is recommended that this setpoint has a Back-Indication Point.","No"]
["nnn DESIRED MW","AO","BASE","Yes","Yes","Yes","Yes","Optional- See Notes","MW",null,null,null,null,null,null,null,null,"Back Indication ","No"]
["nnn DESIRED RAMP RATE","AO","BASE","Yes","Yes","See Notes","See Notes","Optional- See Notes",null,null,null,null,null,null,null,null,null,"This is the Dispatch required ramp rate, issued on-change\nregardless of whether the unit is in AGC control or local control. If the Registered Facility is participating in AEMO-managed linear ramping, this value is not required as the Regsitered Facility will be ramped via AGC (see AGC/ABC Technical Specification).\n\nIf the Registered Facility is not under AGC control, AEMO can\noptionally set the ramp rate of the Facility per Dispatch Interval using this control to match the Dispatch Target ramp rate (e.g. for a Semi-Scheduled Facility).\n\nIf the Registered Facility is participating in Regulation the\nFacility should ignore this and use the maximum ramp rate\nachievable to move to its desired net MW setpoint.\n\n","No"]
["nnn FACILITY DESIRED NET MVAR SETPOINT","AO","BASE","Yes","Yes","Yes","Yes","Yes","MVAR","SBO",40,2,0.01,4900,49,-4900,-49,"Where CONTROL_MODE is one of the individual type of voltage control mode available (e.g. MVAR, PF, KV), if applicable.\n\n-2. MVAr to +2. MVAr (2 dec place)","No"]
["nnn FACILITY DESIRED POWER FACTOR SETPOINT","AO","BASE","Yes","Yes","Yes","Yes","Yes","PF","SBO",40,2,1E-3,1001,1.0010000000000001,-1001,-1.0010000000000001,"-1. to + 1. (2 dec place)","No"]
["nnn FACILITY DESIRED KV SETPOINT","AO","BASE","Yes","Yes","Yes","Yes","Yes","KV","SBO",40,2,0.1,4001,400.1,-1,-0.1,null,"No"]
["WP RTU HEARTBEAT","AO","BASE","Yes","Yes","Yes","Yes","Yes",null,"SBO",40,2,null,null,null,null,null,null,"No"]
["nnn X AVAILABLE GENERATION UNITS","AI","WIND","Yes","Yes","Yes","Yes","Yes",null,"Signed 16 Bit",32,2,null,null,null,null,null,null,"No"]
["nnn HIGH WIND ALARM","AI","WIND","Yes","Yes","Yes","Yes","Yes",null,"Signed 16 Bit",32,2,null,null,null,null,null,"Indicates where one or more wind turbines are running back due to high wind conditions.","No"]
["nnn TURBINBES STOPPED FOR HIGH WIND","AI","WIND","Yes","Yes","Yes","Yes","Yes",null,"Signed 16 Bit",32,2,null,null,null,null,null,"Number of turbines out of service for high wind. ","No"]
["nnn WIND SPEED KMH","AI","WIND","Yes","Yes","Yes","Yes","Yes",null,"Signed 16 Bit",32,2,null,null,null,null,null,"Where a wind farm has significant geographic diversity, multiple wind speed measurements may be required to account for distinct groups of turbines with differing characteristics within the wind farm. This value should be an average of every nacelle or group of nacelles.\n\nIf measurement at the nacelle height is unavailable, then at a nominated height no less than 6% of the nacelle height is acceptable.","No"]
["nnn WIND DIRECTION DEG","AI","WIND","Yes","Yes","Yes","Yes","Yes",null,"Signed 16 Bit",32,2,null,null,null,null,null,"Indicates when the generator is in the process of shutting down.","No"]
["nnn AMBIENT DRY BULB TEMP DEG C","AI","WIND","Yes","Yes","Yes","Yes","Yes",null,"Signed 16 Bit",32,2,null,null,null,null,null,"These data points are only required from one measurement site at each facility. If the Facility is a hybrid Facility, one set of these data points for the entire Facility is sufficient. All values should be taken at ground level or within 3m of such. ","No"]
["nnn AIR PRESSURE HPA","AI","WIND","Yes","Yes","Yes","Yes","Yes",null,"Signed 16 Bit",32,2,null,null,null,null,null,null,"No"]
["nnn RELATIVE HUMIDITY","AI","WIND","Yes","Yes","Yes","Yes","Yes",null,"Signed 16 Bit",32,2,null,null,null,null,null,null,"No"]
["nnn TEMPERATURE DEG C","AI","WIND","Yes","Yes","Yes","Yes","Yes",null,"Signed 16 Bit",32,2,null,null,null,null,null,"Average across Facility","No"]
["nnn MAX TEMPERATURE DEG C","AI","WIND","Yes","Yes","Yes","Yes","Yes",null,"Signed 16 Bit",32,2,null,null,null,null,null,"The maximum value from the sensors that comprise readings that contribute to the average value. ","No"]
["nnn MAX WIND SPEED KMH","AI","WIND","Yes","Yes","Yes","Yes","Yes",null,"Signed 16 Bit",32,2,null,null,null,null,null,"The maximum value from the sensors that comprise readings within the average value ","No"]
["nnn SOLAR INVERTERS AVAILABLE","AI","SOLAR","Yes","Optional","Yes","Yes","Yes",null,"Signed 16 Bit",32,2,null,null,null,null,null,"Depending on the arrangement of the Facility, this may be by the inverter or collector. ","No"]
["nnn HORIZONTAL IRRADIANCE","AI","SOLAR","Yes","Optional","Yes","Yes","Yes",null,"Signed 16 Bit",32,2,null,null,null,null,null,"This value must be the average of all the sensors on the site such that no individual sensor is weighted to represent more than 1MWp of capacity installed. E.g. a 4MW site will require at least 4 sensors.","No"]
["nnn INCLINED IRRADIANCE","AI","SOLAR","Yes","Optional","Yes","Yes","Yes",null,"Signed 16 Bit",32,2,null,null,null,null,null,"This value must be the average of all the sensors on the site such that no one sensor is weighted to represent more than 1MWp of capacity installed. E.g. a 4MW site will require at least 4 sensors.\n\nThis value should represent the irradiance on the tracking surface.","No"]
["nnn TRACKERS AVG ANGLE","AI","SOLAR","Yes","Optional","Yes","Yes","Yes",null,"Signed 16 Bit",32,2,null,null,null,null,null,"This is the angle between the current position and horizontal. Only required for facilities that include single-axis or dual-axis tracking.","No"]
["nnn TRACKERS AVG ORIENT","AI","SOLAR","Yes","Optional","Yes","Yes","Yes",null,"Signed 16 Bit",32,2,null,null,null,null,null,"Orientation for single axis and fixed or semi-fixed arrays can be provided in standing data instead if it is constant. Dual Axis tracking systems must provide this.","No"]
["nnn AMBIENT TEMPERATURE","AI","SOLAR","Yes","Optional","Yes","Yes","Yes",null,"Signed 16 Bit",32,2,null,null,null,null,null,null,"No"]
["nnn MODULE TEMPERATURE","AI","SOLAR","Yes","Optional","Yes","Yes","Yes",null,"Signed 16 Bit",32,2,null,null,null,null,null,"Average for modules. Multiple Operational Data Points may be required where the Registered Facility is geographically dispersed, and significant variations in temperature across the site are possible.","No"]
["nnn INVERTERS AVAILABLE","AI","STORAGE","Yes","Optional","Yes","Yes","Yes",null,"Signed 16 Bit",32,2,null,null,null,null,null,"Where the Registered Facility consists of multiple, distint inverters or Electrical Storage Resources. It may also be called \"nnn UNITS AVAILABLE\" for non-inverter based technologies. ","No"]
["nnn CHARGING MODE","AI","STORAGE","If applicable - See Notes","Optional","Yes","Yes","Yes",null,"Signed 16 Bit",32,2,null,null,null,null,null,"This Operational Data Point is only required if the Registered Facility has distinct charging/discharging modes that significantly alter the operational capabilities of the Registered Facility, and where the process for changing modes takes longer than 1 seconds.","No"]
["nnn CHARGING EFFICIENCY","AI","STORAGE","Yes","Optional","Yes","Yes","Yes",null,"Signed 16 Bit",32,2,null,null,null,null,null,"These may be a single Operational Data Point where these values typically differ by less than 2%.","No"]
["nnn DISCHARGING EFFICIENCY","AI","STORAGE","Yes","Optional","Yes","Yes","Yes",null,"Signed 16 Bit",32,2,null,null,null,null,null,null,"No"]
["nnn INVERTER MODE","AI","STORAGE","Optional ","Optional","Yes","Yes","Yes",null,"Signed 16 Bit",32,2,null,null,null,null,null,"May be required for the provision of certain Essential System Services by the Registered Facility. ","No"]
["nnn AVAILABLE DISCHARGE","AI","STORAGE","Yes","Optional - See Notes","Yes","Yes","Yes",null,"Signed 16 Bit",32,2,null,null,null,null,null,"The usable energy (in MWh) stored in the Facility and capable of being Injected to the Network under prevailing conditions, but at maximum discharge rates. That is, accounting for any minimum state of charge requirements for the Facility.\n\nFor a Registered Facility with a System Size < 1 MW, this point is optional,\nbut is required if the Registered Facility wishes to opt into storage constraints under clause 7.5.9 of the WEM Rules, or if the Registered Facility is a Scheduled Facility or Semi-Scheduled Facility.","No"]
["nnn AVAILABLE CHARGE","AI","STORAGE","Yes","Optional - See Notes","Yes","Yes","Yes",null,"Signed 16 Bit",32,2,null,null,null,null,null,"The remaining capability for the Energy Storage Resource to Withdraw energy from the network and store it in (MWh) under prevailing conditions, but at maximum charge rates. That is, accounting for any maximum state of charge requirements for the Facility.\n\nFor a Registered Facility with a System Size < 1 MW, this point is optional,\nbut is required if the Registered Facility wishes to opt into storage constraints under clause 7.5.9 of the WEM Rules, or if the Registered Facility is a Scheduled Facility or Semi-Scheduled Facility.","No"]
["nnn AMBIENT TEMPERATURE","AI","STORAGE","Yes","Optional ","Yes","Yes","Yes",null,"Signed 16 Bit",32,2,null,null,null,null,null,null,"No"]
["nnn RELATIVE HUMIDITY","AI","STORAGE","Yes","Optional","Yes","Yes","Yes",null,"Signed 16 Bit",32,2,null,null,null,null,null,null,"No"]
["nnn DEW POINT","AI","STORAGE","Yes","Optional","Yes","Yes","Yes",null,"Signed 16 Bit",32,2,null,null,null,null,null,null,"No"]
["nnn MODULE TEMPERATURE","AI","STORAGE","Yes","Optional ","Yes","Yes","Yes",null,"Signed 16 Bit",32,2,null,null,null,null,null,"Average for modules. Multiple Operational Data Points may be required where the Registered Facility is geographically dispersed, and significant variations in temperature across the site are possible.","No"]
["nnn 10 MIN AVAILABLE CAPACITY","AI","STORAGE","Optional ","Optional ","Yes","Yes","Yes",null,"Signed 16 Bit",32,2,null,null,null,null,null,"The maximum amount the storage Facility could send out at a constant MW output in the next 1 minutes.","No"]
["nnn 30 MIN AVAILABLE CAPACITY","AI","STORAGE","Optional ","Optional ","Yes","Yes","Yes",null,"Signed 16 Bit",32,2,null,null,null,null,null,"The maximum amount the storage Facility could send out at a constant MW output in the next 3 minutes.","No"]
["nnn CP FREQUENCY","AI","STORAGE","Optional ","Optional ","Yes","Yes","Yes",null,"Signed 16 Bit",32,2,null,null,null,null,null,"The frequency as measured at the connection point, or as seen by the park controller. Alternatively, if park controller reading isn’t available, inverter level is acceptable.","No"]
["nnn X GROSS MW","AI","INTERUPTIBLE","Yes","Yes","Yes","Yes","Yes",null,"Signed 16 Bit",32,2,null,null,null,null,null,"Where one or more of the Energy Producing Systems within the Registered Facility are inverter connected, these values should measure the AC side of the inverter, or collection of inverters as appropriate. Where a collector group has a gross capacity of more than 1 MW, it should generally be measured separately, and not grouped with other collectors for telemetry purposes.","No"]
["nnn X GROSS MVAR","AI","INTERUPTIBLE","Yes","Yes","Yes","Yes","Yes",null,"Signed 16 Bit",32,2,null,null,null,null,null,"Where the Energy Producing System is inverter connected, these values should measure the AC side of the inverter, or collection of inverters as appropriate","No"]
["nnn X NET MW","AI","INTERUPTIBLE","Yes","Yes","Yes","Yes","Yes",null,"Signed 16 Bit",32,2,null,null,null,null,null,"Where the Facility is inverter connected, these values should measure the AC side of the inverter. If this value measures a collection of inverters, a measurement at the high voltage side of the group’s step up transformer is acceptable.","No"]
["nnn X NET MVAR","AI","INTERUPTIBLE","Yes","Yes","Yes","Yes","Yes",null,"Signed 16 Bit",32,2,null,null,null,null,null,"Where the Facility is inverter connected, these values should measure the AC side of the inverter, or collection of inverters as appropriate.","No"]
["nnn X KV","AI","INTERUPTIBLE","Yes","Yes","Yes","Yes","Yes",null,"Signed 16 Bit",32,2,null,null,null,null,null,"If the relevant Energy Producing System has a stator","No"]
["nnn DESIRED TRIP HZ","AO","INTERUPTIBLE","Yes","Yes","Yes","Yes","Yes","Hz","SBO",40,2,null,null,null,null,null,"This point is intended for AEMO to communicate the desired frequency threshold below which a scheme/relay should operate (e.g. 49.5 Hz). Where AEMO has determined multiple desired frequency thresholds, there should be an individual point for each threshold.","No"]
["nnn PPG CMS X VOLTAGE","AI","PPG","No","Yes","No","No","No","KV","Signed 16 Bit",32,2,0.01,10001,100.01,-10001,-100.01,"Customer Main Switch line Voltage","Yes"]
["nnn PPG CMS X MEGAWATTS","AI","PPG","No","Yes","No","No","No","MW","Signed 16 Bit",32,2,0.01,10001,100.01,-10001,-100.01,"Customer Main Switch line Megawatss","Yes"]
["nnn PPG CMS X MEGAVARS","AI","PPG","No","Yes","No","No","No","MVAr","Signed 16 Bit",32,2,0.01,10001,100.01,-10001,-100.01,"Customer Main Switch line Megavars","Yes"]
["nnn PPG CMS X CURRENT","AI","PPG","No","Yes","No","No","No","A","Signed 16 Bit",32,2,0.1,10001,100.01,-10001,-100.01,"Customer Main Switch line Current","Yes"]
["nnn PPG GMSX MEGAWATTS","AI","PPG","No","Yes","No","No","No","MW","Signed 16 Bit",32,2,0.01,10001,100.01,-10001,-100.01,"Generator X Megawatt output","Yes"]
["nnn PPG GMSX MEGAVARS","AI","PPG","No","Yes","No","No","No","MVAr","Signed 16 Bit",32,2,0.01,10001,100.01,-10001,-100.01,"Generator X Megavar output","Yes"]

{"sheet":"Binary","index":5,"n_rows":92,"n_cols":19,"rows_kept":92,"cut":false,"hidden":true,"merged":[]}
["Network Operations Naming Convention","Type","Template Type","Greater 10 MW","Less 10 MW","Scheduled Facility ","Semi-Scheduled Facility","Non-Scheduled Facility","Command/Point Type","Object","Variant","Comments","spare","spare","spare","spare","spare","spare","Unregistered"]
["nnn X CB OPEN","BI","BASE","Yes","Yes","Yes","Yes","Yes",null,2,2,null,null,null,null,null,null,null,"No"]
["nnn X ESW CLOSED","BI","BASE","Yes","Yes","Yes","Yes","Yes",null,2,2,null,null,null,null,null,null,null,"No"]
["nnn X ISOL OPEN","BI","BASE","Yes","Yes","Yes","Yes","Yes",null,2,2,null,null,null,null,null,null,null,"No"]
["nnn X ISOL CLOSED","BI","BASE","Yes","Yes","Yes","Yes","Yes",null,2,2,null,null,null,null,null,null,null,"No"]
["nnn X BUS TIE OPEN","BI","BASE","Yes","Yes","Yes","Yes","Yes",null,2,2,null,null,null,null,null,null,null,"No"]
["nnn GOVERNOR MODE","BI","BASE","Yes","Yes","Yes","Yes","Optional",null,2,2,"Where applicable\n\nAuto & Manual Indication",null,null,null,null,null,null,"No"]
["nnn FUEL IN USE","BI","BASE","Yes","Yes","Yes","Yes","Yes",null,2,2,"Only required where a Registered Facility can operated on more than one fuel type. \n\nLocal' mode indication",null,null,null,null,null,null,"No"]
["nnn X PLANT NAME CB","BI","BASE","Yes","Yes","Yes","Yes","Optional",null,2,2,"Where PLANT_NAME is the relevant piece of equipment (e.g. synchronous condenser).\n\nComponent of the Facility control system is defective.",null,null,null,null,null,null,"No"]
["nnn X ANTI ISLANDING PROTECTION DEFECTIVE","BI","BASE","Yes","Yes","Yes","Yes","Yes",null,2,2,"If an anti-islanding scheme is present at the Registered Facility\n\nAGC Availability",null,null,null,null,null,null,"No"]
["nnn X ANTI ISLANDING PROTECTON ENABLED IND","BI","BASE","Yes","Yes","Yes","Yes","Yes",null,2,2,"If an anti-islanding scheme is present at the Registered Facility\n\nAGC Availability",null,null,null,null,null,null,"No"]
["nnn X ANTI ISLANDING PROTECTION TRIP","BI","BASE","Yes","Yes","Yes","Yes","Yes",null,2,2,"If an anti-islanding scheme is present at the Registered Facility\n\nAGC Availability",null,null,null,null,null,null,"No"]
["nnn X GSUTX TAP POSITION","BI","BASE","Yes","Yes","Yes","Yes","Optional",null,2,2,"Where applicable\n\nDroop enabled",null,null,null,null,null,null,"No"]
["nnn X GSUTX TAP CHANGER CONTROL MODE","BI","BASE","Yes","Yes","See Notes","Yes","No",null,2,2,"If the tap changer has remote tap changing capability, this indication identifies whether the tap changer is under local or remote control.",null,null,null,null,null,null,"No"]
["nnn GSUTX AVR","BI","BASE","Yes","Yes","Yes","Yes","Optional",null,2,2,"Where applicable\n\nIf the tap changer has remote tap changing capability, this indication identifies whether the tap changer is under local or remote control.",null,null,null,null,null,null,"No"]
["nnn GSUT X PROTECTION DEFECTIVE","BI","BASE","Yes","Yes","See Notes","Yes","No",null,2,2,null,null,null,null,null,null,null,"No"]
["nnn GSUT X PROTECTION OPERATED","BI","BASE","Yes","Yes","Yes","Yes","Optional",null,2,2,null,null,null,null,null,null,null,"No"]
["nnn PROTECTIVE LOAD SHED OPERATED","BI","BASE","Yes","Yes","Yes","Yes","Optional",null,2,2,null,null,null,null,null,null,null,"No"]
["nnn DCS SLAVE RTU FAIL","BI","BASE","Yes","Yes","Yes","Yes","Optional",null,2,2,"Alarm raised when the communications fail between the RTU and the Facility control system",null,null,null,null,null,null,"No"]
["nnn X PROTECTION OPERATED","BI","BASE","Yes","Yes","Yes","Yes","Optional",null,2,2,null,null,null,null,null,null,null,"No"]
["nnn X PROTECTION DEFECTIVE","BI","BASE","Yes","Yes","Yes","Yes","Yes",null,2,2,null,null,null,null,null,null,null,"No"]
["nnn X PROTECTION OPERATED","BI","BASE","Yes","Yes","Yes","Yes","Yes",null,2,2,null,null,null,null,null,null,null,"No"]
["nnn X PROTECTION DEFECTIVE","BI","BASE","Yes","Yes","Yes","Yes","Yes",null,2,2,null,null,null,null,null,null,null,"No"]
["nnn PLANT_NAME PROTECTION OPERATED","BI","BASE","Yes","Yes","Yes","Yes","Optional",null,2,2,"Only required where additional reactive power devices have been installed. Where PLANT_NAME is the relevant piece of equipment (e.g. a synchronous condenser)",null,null,null,null,null,null,"No"]
["nnn REMOTE CONTROL","BI","BASE","Yes","Yes","Yes","Yes","Optional",null,2,2,"Determines if the Registered Facility is a capable of receiving instructions from AEMO’s AGC system. If this point is set to ‘local’, AEMO’s AGC system will remove the Registered Facility from AGC dispatch.",null,null,null,null,null,null,"No"]
["nnn CONTROL SYSTEM FAIL","BI","BASE","Yes","Yes","Yes","Yes","Yes",null,2,2,null,null,null,null,null,null,null,"No"]
["nnn FREQUENCY CONTROL MODE","BI","BASE","Yes","Yes","Optional ","Optional","Optional",null,2,2,null,null,null,null,null,null,null,"No"]
["nnn MVAR CONTROL MODE","BI","BASE","Yes","Yes","Optional ","Optional","Optional",null,2,2,"Back Indication Point",null,null,null,null,null,null,"No"]
["nnn PF CONTROL MODE","BI","BASE","Yes","Yes","Optional ","Optional","Optional",null,2,2,"Back Indication Point",null,null,null,null,null,null,"No"]
["nnn KV CONTROL MODE","BI","BASE","Yes","Yes","Optional ","Optional","Optional",null,2,2,"Back Indication Point",null,null,null,null,null,null,"No"]
["nnn SYNC IN PROGRESS","BI","BASE","Yes","Yes","Yes","No ","No",null,2,2,null,null,null,null,null,null,null,"No"]
["nnn GX TURBINE SPEED","BI","BASE","Yes","Yes","Yes","Yes","No",null,2,2,"Indication of the turbine speed associated with each generating unit in the Facility, measured as a %, where applicable to the relevant technology. ",null,null,null,null,null,null,"No"]
["nnn AGC CONTROL SELECTION","BI","BASE","Yes","Yes","Yes","Yes","Optional ",null,2,2,"An indication from the Registered Facility that it is available for AGC control. When true, the Registered Facility will receive signals as per the participation modes outlines in AEMO's technical specification:Operational Data Poins for Registered Facilities.\n\n If a Registered Facility is no longer available for AGC dispatch, it must update this point within 3 seconds to reflect this.\n",null,null,null,null,null,null,"No"]
["nnn X OPERATING MODE","BI","GAS","Yes","Optional","Yes","Yes","Yes",null,2,2,"Or other operating modes as appropriate for the turbine",null,null,null,null,null,null,"No"]
["nnn X DROOP MODE","BI","GAS","Yes","Optional","Yes","Yes","Yes",null,2,2,"Indicates whether “standard” droop is active on the generator",null,null,null,null,null,null,"No"]
["nnn X READY TO START","BI","GAS","Yes","Optional","Yes","Yes","Yes",null,2,2,"Indicates that the generator is in a ready to start date",null,null,null,null,null,null,"No"]
["nnn X STARTING IN PROGRESS","BI","GAS","Yes","Optional","Yes","Yes","Yes",null,2,2,"Indicates when the generator is in the process of starting up",null,null,null,null,null,null,"No"]
["nnn X RUNDOWN IN PROGRESS","BI","GAS","Yes","Optional","Yes","Yes","Yes",null,2,2,"Indicates when the generator is in the process of shutting down",null,null,null,null,null,null,"No"]
["nnn X TEMPERATURE LIMIT","BI","GAS","Yes","Optional","Yes","Yes","Yes",null,2,2,"Indicates where a turbine has reached a temperature limit and can no longer increase output",null,null,null,null,null,null,"No"]
["nnn X TURBINE MODE","BI","STEAM","Yes","Optional","Yes","Yes","Yes",null,2,2,"Boiler follower/turbine follower",null,null,null,null,null,null,"No"]
["nnn X DROOP MODE","BI","STEAM","Yes","Optional","Yes","Yes","Yes",null,2,2,"Indicates whether “standard” droop is active on the generator",null,null,null,null,null,null,"No"]
["nnn X EXCITATION MODE","BI","STEAM","Yes","Optional","Yes","Yes","Yes",null,2,2,"Auto/Manual",null,null,null,null,null,null,"No"]
["nnn X STARTING IN PROGRESS","BI","STEAM","Yes","Optional","Yes","Yes","Yes",null,2,2,"Indicates when the generator is in the process of starting up",null,null,null,null,null,null,"No"]
["nnn X RUNDOWN IN PROGRESS","BI","STEAM","Yes","Optional","Yes","Yes","Yes",null,2,2,"Indicates when the generator is in the process of shutting down",null,null,null,null,null,null,"No"]
["nnn HIGH WIND ALARM","BI","WIND","Yes","Yes","Yes","Yes","Yes",null,2,2,"Indicates where one or more wind turbines are running back due to high wind conditions.",null,null,null,null,null,null,"No"]
["nnn CB X","BI","INTERUPTIBLE","Yes","Yes","Yes","Yes","Yes",null,2,2,"Where AEMO requires monitoring of multiple relays or schemes, there should be one point for each of these. ",null,null,null,null,null,null,"No"]
["nnn X RELAY OPERATED","BI","INTERUPTIBLE","Yes","Yes","Yes","Yes","Yes",null,2,2,"Where AEMO requires monitoring of multiple relays or schemes, there should be one point for each of these. ",null,null,null,null,null,null,"No"]
["nnn UFLS LOAD_X STAGE","BI","UFLS","Yes","Yes","Yes","Yes","Yes",null,2,2,"This is the back indication selection status for the first block of UFLS load (1-5, OFF).  Back Indication of the UFLS stage allocations (i.e. 1,2,3,4,5, OFF) for each UFLS stage is required. ",null,null,null,null,null,null,"No"]
["nnn X UFLS SCHEME ENABLED","BI","UFLS","Yes","Yes","Yes","Yes","Yes",null,2,2,"This is the back indication status of the UFLS scheme (Enabled/Disabled).",null,null,null,null,null,null,"No"]
["nnn UFLS LOAD_X DEFECTIVE","BI","UFLS","Yes","Yes","Yes","Yes","Yes",null,2,2,"Alarm indication for defective equipment for the first block of ULFS load. ",null,null,null,null,null,null,"No"]
["nnn UFLS LOAD-X OPERATED","BI","UFLS","Yes","Yes","Yes","Yes","Yes",null,2,2,"Alarm indication for the operation of first block of UFLS load. ",null,null,null,null,null,null,"No"]
["nnn CB X","BI","ELPS","Yes","Yes","Yes","Yes","Yes",null,2,2,"Where AEMO requires monitoring of multiple relays or schemes, there should be one point for each of these. ",null,null,null,null,null,null,"No"]
["nnn_DCS COMMS FAIL","BI","ELPS","Yes","Yes","Yes","Yes","Yes",null,2,2,"Customer DCS System communication has failed or unable to respond from Western Power. ",null,null,null,null,null,null,"No"]
["nnn_LOAD CONTROL EQUIPMENT DEFECTIVE","BI","ELPS","Yes","Yes","Yes","Yes","Yes",null,2,2,"When the customer system is defective and may be unable to respond to controls from Western Power",null,null,null,null,null,null,"No"]
["nnn_LOAD PERMISSIVE ENABLED","BI","ELPS","Yes","Yes","Yes","Yes","Yes",null,2,2,"Feedback from Control Load Permissive CMD",null,null,null,null,null,null,"No"]
["nnn_LOAD CONTROL RECLOSER COMMUNICATION FAIL","BI","ELPS","Yes","Yes","Yes","Yes","Yes",null,2,2,"If WPC recloser is required.",null,null,null,null,null,null,"No"]
["nnn_LOAD CONTROL RECLOSER DEFECTIVE","BI","ELPS","Yes","Yes","Yes","Yes","Yes",null,2,2,"If WPC recloser is required.",null,null,null,null,null,null,"No"]
["nnn_LOAD CONTROL RECLOSER TRIP","BI","ELPS","Yes","Yes","Yes","Yes","Yes",null,2,2,"If WPC recloser is required.",null,null,null,null,null,null,"No"]
["nnn_LOAD CONTROL RECLOSER BACKUP TRIP","BI","ELPS","Yes","Yes","Yes","Yes","Yes",null,2,2,"If WPC recloser is required.",null,null,null,null,null,null,"No"]
["nnn PPG CMS X","BI","PPG","No","Yes","No","No","No",null,2,2,"Customer Main Switch. Include any ISOLATOR and EARTH SWITCH (ABS &ES) @ CMS",null,null,null,null,null,null,"Yes"]
["nnn PPG GMS X","BI","PPG","No","Yes","No","No","No",null,2,2,"Generator Main Switch.",null,null,null,null,null,null,"Yes"]
["nnn PPG CPS X","BI","PPG","No","Yes","No","No","No",null,2,2,"Customer Paralleling Switch.",null,null,null,null,null,null,"Yes"]
["nnn PPG CLOSE GEN SWITCHES","BI","PPG","No","Yes","No","No","No",null,2,2,"Close Enable permissive signal for GMS1, GM2 etc. Enabled=1, Disabled=0.",null,null,null,null,null,null,"Yes"]
["nnn PPG PROTECTION OPERATED","BI","PPG","No","Yes","No","No","No",null,2,2,"Common alarm, any Protection alarm that will TRIP off load/generation.",null,null,null,null,null,null,"Yes"]
["nnn PPG BATTERY/PROTECTION DEFECTIVE","BI","PPG","No","Yes","No","No","No",null,2,2,"Common alarm for site. Any fault on battery AND Protection system.",null,null,null,null,null,null,"Yes"]
["nnn PPG SLAVE RTU FAIL","BI","PPG","No","Yes","No","No","No",null,2,2,"Generated by Western Power on loss of comms to PPG.",null,null,null,null,null,null,"Yes"]
["nnn PPG RTU COMMS LINK HEARTBEAT","BI","PPG","No","Yes","No","No","No",null,2,2,"WP to PPG Comms link heartbeat feedback. Internal point.",null,null,null,null,null,null,"Yes"]
["nnn PPG COMMS FAIL INTERTRIP","BI","PPG","No","Yes","No","No","No",null,2,2,"Enable/Disable signal for comms fail logic. Enable=0, Disable=1.",null,null,null,null,null,null,"Yes"]
[null,"BI","PPG","No","No","No","No","No",null,2,2,null,null,null,null,null,null,null,"No"]
[null,"BI","PPG","No","No","No","No","No",null,2,2,null,null,null,null,null,null,null,"No"]
[null,"BI","PPG","No","No","No","No","No",null,2,2,null,null,null,null,null,null,null,"No"]
[null,"BI","PPG","No","No","No","No","No",null,2,2,null,null,null,null,null,null,null,"No"]
["nnn X CB OPEN","BO","BASE","Yes","Yes","Yes","Yes","Yes","PULSE",10,2,null,null,null,null,null,null,null,"No"]
["nnn MVAR CONTROL MODE","BO","BASE","Yes","Yes","Yes","Yes","Yes","PULSE",10,2,"Control",null,null,null,null,null,null,"No"]
["nnn PF CONTROL MODE","BO","BASE","Yes","Yes","Yes","Yes","Yes","PULSE",10,2,"Control",null,null,null,null,null,null,"No"]
["nnn KV CONTROL MODE","BO","BASE","Yes","Yes","Yes","Yes","Yes","PULSE",10,2,"Control",null,null,null,null,null,null,"No"]
["nnn GSUT X TAP CONTROL","BO","BASE","Yes","Yes","Yes","Yes","Optional ","PULSE",10,2,"Raise/Lower voltage controls. If required bu Network Operator",null,null,null,null,null,null,"No"]
["nnn RTU DCS COMMS LINK HEARTBEAT","BO","BASE","Yes","Yes","Yes","Yes","Yes","PULSE",10,2,"\nRTU Internal Point \nThis internal point periodically sends a control signal to the Facilities control system. A response is expected from the control system to indicate that communications are still alive. If a response is not received within a specific time period, an alarm is generated.",null,null,null,null,null,null,"No"]
["RTU INTERNAL POINT","BO","BASE","Yes","Yes","Optional ","Optional ","Optional ","PULSE",10,2,"\nRTU Internal Point \nInternal indication that the communications between the Network Operator’s SCADA Remote Terminal Unit and the Network Operator’s SCADA master station has failed.",null,null,null,null,null,null,"No"]
["nnn DISPATCH INJECTION CAP MW","BO","BASE","Yes","Yes","Yes","Yes","Optional ","PULSE",10,2,"This is the Dispatch Cap MW setpoint for Injection (as applicable) for current Dispatch Interval, or next Dispatch Interval where there is a step change just prior to the commencement of that interval.",null,null,null,null,null,null,"No"]
["nnn DISPATCH WITHDRAWAL CAP MW","BO","BASE","Yes","Yes","Yes","Yes","Optional ","PULSE",10,2,"This is the Dispatch Cap MW setpoint for Withdrawal (as applicable) for current Dispatch Interval, or next Dispatch Interval where there is a step change just prior to the commencement of that interval.",null,null,null,null,null,null,"No"]
["nnn UFLS RESET","BO","UFLS","Yes","Yes","Yes","Yes","Yes","PULSE",10,2,"Ability to send a remote -control signal from Western Power to reset the UFLS scheme, post UFLS operation. This is to allow for the restoration of loads that operated under an UFLS event. ",null,null,null,null,null,null,"No"]
["nnn UFLS ENABLED","BO","UFLS","Yes","Yes","Yes","Yes","Yes","PULSE",10,2,"Ability to send a remote -control signal from Western Power to enable the UFLS scheme. ",null,null,null,null,null,null,"No"]
["nnn UFLS DISABLED","BO","UFLS","Yes","Yes","Yes","Yes","Yes","PULSE",10,2,"Ability to send a remote -control signal from Western Power to disable the UFLS scheme. ",null,null,null,null,null,null,"No"]
["nnn UFLS LOAD_X STAGE (CONTROL)","BO","UFLS","Yes","Yes","Yes","Yes","Yes","PULSE",10,2,"Ability to send a remote-control signal from Western Power to reallocated the UFLS stage for a UFLS load shedding stage. ",null,null,null,null,null,null,"No"]
["nnn_PERMISSIVE LOAD ENABLE CMD","BO","ELPS","Yes","Yes","Yes","Yes","Yes","PULSE",10,2,"Non-dispatchable load must be reduced at agreed ramp rates or times and connected/disconnected from Western Power ",null,null,null,null,null,null,"No"]
["nnn_PERMISSIVE LOAD DISABLE CMD","BO","ELPS","Yes","Yes","Yes","Yes","Yes","PULSE",10,2,"Non-dispatchable load must be reduced at agreed ramp rates or times and connected/disconnected from Western Power ",null,null,null,null,null,null,"No"]
["nnn_EMERGENCY STOP CMD","BO","ELPS","Yes","Yes","Yes","Yes","Yes","PULSE",10,2,"Curtailable load must immediately trip off from Western Power",null,null,null,null,null,null,"No"]
["nnn PPG OFF","BO","PPG","No","Yes","No","No","No","PULSE",10,2,"Trip signal for TRIPPING GMS1, GMS2, GMSx...",null,null,null,null,null,null,"Yes"]
["nnn PPG CLOSE GEN SWITCHES","BO","PPG","No","Yes","No","No","No","PULSE",10,2,"Close Enable permissive signal for GMS1, GM2 etc",null,null,null,null,null,null,"Yes"]
["nnn PPG RTU COMMS LINK HEARTBEAT","BO","PPG","No","Yes","No","No","No","PULSE",10,2,"WP to PPG Comms Watchdog",null,null,null,null,null,null,"Yes"]
["nnn PPG COMMS FAIL INTERTRIP","BO","PPG","No","Yes","No","No","No","PULSE",10,2,"Enable/Disable signal for comms fail logic. ",null,null,null,null,null,null,"Yes"]

{"sheet":"Binary_Lookup","index":6,"n_rows":68,"n_cols":9,"rows_kept":68,"cut":false,"hidden":true,"merged":[]}
["Binary Inputs",null,null,null,null,"Binary Outputs"]
["PointName","NOPS PointName","Point Alias","Reference",null,"PointName","NOPS PointName","Point Alias","Reference"]
["nnn X CB OPEN","nnn X  ","All Facility Switching Devices Opened/Closed (E.G. Circuit Breakers - Open)",{"$f":"A3","v":"nnn X CB OPEN"},null,"nnn X CB OPEN","nnn X  ","Facility Switching Devices Opened/Closed (E.G. Circuit Breakers) ",{"$f":"F3","v":"nnn X CB OPEN"}]
["nnn X ESW CLOSED","nnn X ","All Facility Switching Devices Opened/Closed (E.G. Earth Switches - Closed)",{"$f":"A4","v":"nnn X ESW CLOSED"},null,"nnn MVAR CONTROL MODE","nnn MEGAVAR CONTROL MODE","Facility Control Mode Mvar",{"$f":"F4","v":"nnn MVAR CONTROL MODE"}]
["nnn X ISOL OPEN","nnn X ","All Facility Switching Devices Opened/Closed (E.G. Isolators - Open)","nnn X ISOL OPEN",null,"nnn PF CONTROL MODE","nnn PF CONTROL MODE","Facility Control Mode Pf","nnn PF CONTROL MODE"]
["nnn X ISOL CLOSED","nnn X ","All Facility Switching Devices Opened/Closed (E.G. Isolator - Closed)","nnn X ISOL CLOSED",null,"nnn KV CONTROL MODE","nnn A VOLTAGE CONTROL MODE, nnn B VOLTAGE CONTROL MODE","Facility Control Mode Kv","nnn KV CONTROL MODE"]
["nnn X BUS TIE OPEN","nnn X CB BUS TIE","All Facility Switching Devices Opened/Closed (E.G. Bus-Ties - Open)","nnn X BUS TIE OPEN",null,"nnn GSUT X TAP CONTROL","nnn GSUT X TAP CONTROL","Generator Step-Up Transformer Tap Control","nnn GSUT X TAP CONTROL"]
["nnn GOVERNOR MODE","nnn GX GOVERNOR CONTROL MODE, nnn GX GOVERNOR CONTROL","Governor Mode (E.G. Droop/Isochronous)","nnn GOVERNOR MODE",null,"nnn RTU DCS COMMS LINK HEARTBEAT","nnn RTU DCS COMMS LINK HEARTBEAT, is this really a control point?","Rtu To Dcs Comms Watchdog ","nnn RTU DCS COMMS LINK HEARTBEAT"]
["nnn FUEL IN USE","nnn FUEL SELECTION","Fuel Type (E.G. Liquid/Gas/Coal)","nnn FUEL IN USE",null,"RTU INTERNAL POINT","Is this required for the master station?","Master Station Communications Fail ","RTU INTERNAL POINT"]
["nnn X PLANT NAME CB","nnn X PLANT NAME CB","Associated Reactive Plant Switching Devices Opened/Closed (E.G. Isolators, Circuit Breakers – Two Complementary Contacts I.E. Nc/No Pair)","nnn X PLANT NAME CB",null,"nnn DISPATCH INJECTION CAP MW","nnn SYSTEM NETT MW INJECTIONS MEGAWATTS, not a Binary control","Dispatch Cap/Target MW (Injection)","nnn DISPATCH INJECTION CAP MW"]
["nnn X ANTI ISLANDING PROTECTION DEFECTIVE","nnn X ANTI ISLANDING PROTECTION DEFECTIVE, nnn X ANTI ISLANDING PROTECTION <1 or 2> DEFECTIVE","Status Of Anti-Islanding Protection - Defective Alarm","nnn X ANTI ISLANDING PROTECTION DEFECTIVE",null,"nnn DISPATCH WITHDRAWAL CAP MW","nnn DISPATCH WITHDRAWAL CAP MEGAWATTS, not a Binary control","Dispatch Cap/Target MW (Withdrawal)","nnn DISPATCH WITHDRAWAL CAP MW"]
["nnn X ANTI ISLANDING PROTECTON ENABLED IND","nnn X ANTI ISLANDING PROTECTION, nnn X ANTI ISLANDING PROTECTION <1 or 2>","Status Of Anti-Islanding Protection - Enabled Indicaiton","nnn X ANTI ISLANDING PROTECTON ENABLED IND",null,"nnn UFLS RESET","nnn UFLS RESET","UFLS Reset","nnn UFLS RESET"]
["nnn X ANTI ISLANDING PROTECTION TRIP","nnn X ANTI ISLANDING PROTECTION TRIP","Status Of Anti-Islanding Protection - Trip","nnn X ANTI ISLANDING PROTECTION TRIP",null,"nnn UFLS ENABLED","nnn TX UFLS ENABLE OR DISABLE REQUIRED ACTION","UFLS Enanble","nnn UFLS ENABLED"]
["nnn X GSUTX TAP POSITION","nnn X GSUTX TAP POSITION","Generator Step-Up Transformer(S) Tap Position","nnn X GSUTX TAP POSITION",null,"nnn UFLS DISABLED","nnn TX UFLS ENABLE OR DISABLE REQUIRED ACTION","UFLS Disbale ","nnn UFLS DISABLED"]
["nnn X GSUTX TAP CHANGER CONTROL MODE","nnn GSUTX TAP CHANGER CONTROL","Generator Step-Up Transformer(S) Tap Changer Control Mode (Remote/Local)","nnn X GSUTX TAP CHANGER CONTROL MODE",null,"nnn UFLS LOAD_X STAGE (CONTROL)","nnn X UFLS STAGE SELECTN","UFLS load stage selection","nnn UFLS LOAD_X STAGE (CONTROL)"]
["nnn GSUTX AVR","nnn GSUTX AVR, is this an alarm? Would nnn GSUTX AVR CONTROL FAIL or nnn GSUTX AVR SYSTEM DEFECTIVE be suitable?","Generator Step-Up Transformer AVR Status","nnn GSUTX AVR",null,"nnn_PERMISSIVE LOAD ENABLE CMD","nnn PERMISSIVE LOAD ","Control Output to Customer ","nnn_PERMISSIVE LOAD ENABLE CMD"]
["nnn GSUT X PROTECTION DEFECTIVE","nnn GSUTX PROTECTION DEFECTIVE","Generator Step-Up Transformer(S) Protection Status (Normal/Abnormal)","nnn GSUT X PROTECTION DEFECTIVE",null,"nnn_PERMISSIVE LOAD DISABLE CMD","nnn PERMISSIVE LOAD ","Control Output to Customer ","nnn_PERMISSIVE LOAD DISABLE CMD"]
["nnn GSUT X PROTECTION OPERATED","nnn GSUTX PROTECTION OPERATED","Generator Step-Up Transformer(S) Protection Operated","nnn GSUT X PROTECTION OPERATED",null,"nnn_EMERGENCY STOP CMD","nnn ELPS EMERGENCY STOP","Control Output to Customer","nnn_EMERGENCY STOP CMD"]
["nnn PROTECTIVE LOAD SHED OPERATED","nnn PROTECTIVE LOAD SHED OPERATED, is this similar to nnn X UNDERVOLTAGE  LOAD SHED OPERATED or nnn X OVERVOLTAGE  LOAD SHED OPERATED?","Protective Load Shed Operated","nnn PROTECTIVE LOAD SHED OPERATED",null,"nnn PPG OFF","nnn PPG OFF","Trip signal for TRIPPING GMS1, GMS2, GMSx...","nnn PPG OFF"]
["nnn DCS SLAVE RTU FAIL","nn DCS SLAVE RTU FAIL","Distributed Control System (Dcs) To Remote Terminal Unit (Rtu) Comms Link Heartbeat - Communication Link(S) Fail","nnn DCS SLAVE RTU FAIL",null,"nnn PPG CLOSE GEN SWITCHES","nnn PPG CLOSE GEN SWITCHES","Close Enable permissive signal for GMS1, GM2 etc","nnn PPG CLOSE GEN SWITCHES"]
["nnn X PROTECTION OPERATED","nnn X PROTECTION OPERATED","Generator /Main Switch/Busbar -  Protection Operated","nnn X PROTECTION OPERATED",null,"nnn PPG RTU COMMS LINK HEARTBEAT",null,"WP to PPG Comms Watchdog","nnn PPG RTU COMMS LINK HEARTBEAT"]
["nnn X PROTECTION DEFECTIVE","nnn X PROTECTION DEFECTIVE","Generator /Main Switch/Busbar -  Protection Defective","nnn X PROTECTION DEFECTIVE",null,"nnn PPG COMMS FAIL INTERTRIP","nnn PPG COMMS FAIL INTERTRIP","Enable/Disable signal for comms fail logic. ","nnn PPG COMMS FAIL INTERTRIP"]
["nnn X PROTECTION OPERATED","nnn X PROTECTION OPERATED","Step Up Transformer - Protection Operated","nnn X PROTECTION OPERATED"]
["nnn X PROTECTION DEFECTIVE","nnn X PROTECTION DEFECTIVE","Step Up Transformer - Protection Defective","nnn X PROTECTION DEFECTIVE"]
["nnn PLANT_NAME PROTECTION OPERATED","nnn PLANT_NAME PROTECTION OPERATED","Associated Reactive Plant Protection Operated","nnn PLANT_NAME PROTECTION OPERATED"]
["nnn REMOTE CONTROL","nnn REMOTE CONTROL","Facility Local/Remote MW Control","nnn REMOTE CONTROL"]
["nnn CONTROL SYSTEM FAIL","nnn CONTROL SYSTEM FAIL","Facility Control System Failure","nnn CONTROL SYSTEM FAIL"]
["nnn FREQUENCY CONTROL MODE","nnn FREQ CONTROL MODE","Facility Frequency Control Mode","nnn FREQUENCY CONTROL MODE"]
["nnn MVAR CONTROL MODE","nnn MEGAVAR CONTROL MODE","Facility Mvar Control Mode Received","nnn MVAR CONTROL MODE"]
["nnn PF CONTROL MODE","nnn PF CONTROL MODE","Facility Pf Control Mode Received","nnn PF CONTROL MODE"]
["nnn KV CONTROL MODE","nnn A VOLTAGE CONTROL MODE, nnn B VOLTAGE CONTROL MODE","Facility KV Control Mode Received","nnn KV CONTROL MODE"]
["nnn SYNC IN PROGRESS","nnn GX SYNC IN PROGRESS","Generating Facility Synchonising ","nnn SYNC IN PROGRESS"]
["nnn AGC CONTROL SELECTION","nnn GX AGC CONTROL SELECTION","AGC Control Availability Staus ","nnn AGC CONTROL SELECTION"]
["nnn X OPERATING MODE","nnn X OPERATING MODE","Base/peak mode","nnn X OPERATING MODE"]
["nnn X DROOP MODE","nnn X DROOP MODE","Droop enabled/blocked","nnn X DROOP MODE"]
["nnn X READY TO START","nnn X READY TO START","Ready to start","nnn X READY TO START"]
["nnn X STARTING IN PROGRESS","nnn X STARTING IN PROGRESS","Starting in progress","nnn X STARTING IN PROGRESS"]
["nnn X RUNDOWN IN PROGRESS","nnn X RUNDOWN IN PROGRESS","Rundown in progress ","nnn X RUNDOWN IN PROGRESS"]
["nnn X TEMPERATURE LIMIT","nnn X TEMPERATURE LIMIT, is this the same as nnn X TEMPERATURE HIGH?","At temperature limit indication","nnn X TEMPERATURE LIMIT"]
["nnn X TURBINE MODE","nnn GX TURBINE FOLLOW MODE","Turbine Mode","nnn X TURBINE MODE"]
["nnn X DROOP MODE","nnn X DROOP MODE","Droop enabled/blocked","nnn X DROOP MODE"]
["nnn X EXCITATION MODE","nnn X EXCITATION SELECTION","Excitation Mode","nnn X EXCITATION MODE"]
["nnn X STARTING IN PROGRESS","nnn X STARTING IN PROGRESS","Starting in progress","nnn X STARTING IN PROGRESS"]
["nnn X RUNDOWN IN PROGRESS","nnn X RUNDOWN IN PROGRESS","Rundown in progress ","nnn X RUNDOWN IN PROGRESS"]
["nnn CB X","nnn CB X OPERATED","Relay/scheme activation status","nnn CB X"]
["nnn X RELAY OPERATED","nnn X RELAY OPERATED","Relay/scheme operated","nnn X RELAY OPERATED"]
["nnn UFLS LOAD_X STAGE","nnn X UFLS STAGE BCD <BCD>","UFLS Load_X stage selection","nnn UFLS LOAD_X STAGE"]
["nnn X UFLS SCHEME ENABLED","nnn X UFLS SCHEME","UFLS Scheme status","nnn X UFLS SCHEME ENABLED"]
["nnn UFLS LOAD_X DEFECTIVE","nnn X UFLS LOAD DEFECTIVE or nnn UFLS LOAD_X DEFECTIVE?","UFLS Load Defective","nnn UFLS LOAD_X DEFECTIVE"]
["nnn UFLS LOAD-X OPERATED","nnn UFLS LOAD SHED STAGE 3 OPERATED","UFLS Load Operated","nnn UFLS LOAD-X OPERATED"]
["nnn CB X","nnn CB X ","Curtailable Load Disconnected","nnn CB X"]
["nnn_DCS COMMS FAIL","nnn DCS COMMS FAIL","DCS Communications Fail ","nnn_DCS COMMS FAIL"]
["nnn_LOAD CONTROL EQUIPMENT DEFECTIVE","nnn LOAD CONTROL EQUIPMENT DEFECTIVE","Load Control Equipment Defective","nnn_LOAD CONTROL EQUIPMENT DEFECTIVE"]
["nnn_LOAD PERMISSIVE ENABLED","nnn LOAD PERMISSIVE","Load Permissive Enabled","nnn_LOAD PERMISSIVE ENABLED"]
["nnn_LOAD CONTROL RECLOSER COMMUNICATION FAIL","nnn LOAD CONTROL RECLOSER COMMUNICATION FAIL","Load Control Recloser Communication Fail","nnn_LOAD CONTROL RECLOSER COMMUNICATION FAIL"]
["nnn_LOAD CONTROL RECLOSER DEFECTIVE","nnn LOAD CONTROL RECLOSER DEFECTIVE","Load Control Recloser Defective","nnn_LOAD CONTROL RECLOSER DEFECTIVE"]
["nnn_LOAD CONTROL RECLOSER TRIP","nnn LOAD CONTROL RECLOSER TRIP","Load Control Recloser Trip","nnn_LOAD CONTROL RECLOSER TRIP"]
["nnn_LOAD CONTROL RECLOSER BACKUP TRIP","nnn LOAD CONTROL RECLOSER BACKUP TRIP","Load Control Recloser Backup Trip","nnn_LOAD CONTROL RECLOSER BACKUP TRIP"]
["nnn HIGH WIND ALARM","nnn X HIGH WIND ALARM","High wind alarms","nnn HIGH WIND ALARM"]
["nnn PPG CMS X","nnn PPG CMS X","Customer Main Switch. Include any ISOLATOR and EARTH SWITCH (ABS &ES) @ CMS","nnn CMS X OPEN"]
["nnn PPG GMS X","nnn PPG GMS X","Generator Main Switch.","nnn GMS X OPEN"]
["nnn PPG CPS X","nnn PPG CPS X","Customer Paralleling Switch.","nnn CPS X OPEN"]
["nnn PPG CLOSE GEN SWITCHES","nnn PPG CLOSE GEN SWITCHES","Close Enable permissive signal for GMS1, GM2 etc. Enabled=1, Disabled=0."]
["nnn PPG PROTECTION OPERATED","nnn PPG PROTECTION OPERATED","Common alarm, any Protection alarm that will TRIP off load/generation.","nnn PROTECTION OPERATED"]
["nnn PPG BATTERY/PROTECTION DEFECTIVE","nnn PPG BATTERY/PROTECTION DEFECTIVE","Common alarm for site. Any fault on battery AND Protection system.","nnn PROTECTION DEFECTIVE"]
["nnn PPG SLAVE RTU FAIL","nnn PPG SLAVE RTU FAIL","Generated by Western Power on loss of comms to PPG.","nnn SLAVE RTU FAIL"]
["nnn PPG RTU COMMS LINK HEARTBEAT",null,"WP to PPG Comms link heartbeat feedback. Internal point.","nnn PPG RTU COMMS LINK HEARTBEAT"]
["nnn PPG COMMS FAIL INTERTRIP","nnn PPG COMMS FAIL INTERTRIP","Enable/Disable signal for comms fail logic. Enable=0, Disable=1.","nnn PPG COMMS FAIL INTERTRIP"]

{"sheet":"Analogue_Lookup","index":7,"n_rows":99,"n_cols":9,"rows_kept":99,"cut":false,"hidden":true,"merged":[]}
["Analogue Inputs",null,null,null,null,"Analogue Outputs"]
["PointName","NOPS PointName","Point Descriptor","Reference",null,"PointName","NOPS PointName","Point Descriptor","Reference"]
["nnn X GROSS MW","nnn X GROSS MW","Gross Active Power Measurement Of Each Generating Unit",{"$f":"A3","v":"nnn X GROSS MW"},null,"nnn X DESIRED KV","nnn X DESIRED VOLTAGE","Generator Terminal Voltage Control",{"$f":"F3","v":"nnn X DESIRED KV"}]
["nnn X GROSS MVAR","nnn X GROSS MVAR","Gross Reactive Power Measurement Of Each Generating Unit","nnn X GROSS MVAR",null,"nnn AGC CONTROL MODE","nnn AGC CONTROL MODE"," AGC Participation/Control Mode Indication",{"$f":"F4","v":"nnn AGC CONTROL MODE"}]
["nnn X NET MW","nnn X NETT MEGAWATTS","Net Active Power Measurement Of Each Generating Unit","nnn X NET MW",null,"nnn LOW AGC LIMIT","nnn LOW AGC LIMIT","Facility AGC Low Operation Limit","nnn LOW AGC LIMIT"]
["nnn X NET MVAR","nnn X NETT MEGAVARS","Net Reactive Power Measurement Of Each Generating Unit","nnn X NET MVAR",null,"nnn HIGH AGC LIMIT","nnn HIGH AGC LIMIT","Facility AGC High Operation Limit","nnn HIGH AGC LIMIT"]
["nnn X KV","nnn X KV","Generating Unit Stator Voltage","nnn X KV",null,"nnn ACTUAL MW","nnn ACTUAL MEGAWATTS, nnn GTX ACTUAL MEGAWATTS","Facility Actual MW Setpoint","nnn ACTUAL MW"]
["nnn X TARGET KV","nnn X TARGET VOLTAGE","Generating Unit Target Stator Voltage","nnn X TARGET KV",null,"nnn BASEPOINT MW","nnn BASEPOINT, nnn BASEPOINT MEGAWATTS","Facility Basepoint MW Setpoint","nnn BASEPOINT MW"]
["nnn GROSS MW","nnn GROSS MEGAWATTS","Total Gross Active Power For The Facility","nnn GROSS MW",null,"nnn LOOK-AHEAD MW","nnn DI Basetpoint Look ahead","Look-Ahead Dispatch Target MW Setpoint","nnn LOOK-AHEAD MW"]
["nnn GROSS MVAR","nnn GROSS MEGAVARS","Total Gross Reactive Power For The Facility","nnn GROSS MVAR",null,"nnn DISPATCH TARGET MW","nnn DISPATCH TARGET MEGAWATTS","Facility Dispatch Target MW","nnn DISPATCH TARGET MW"]
["nnn NET MW","nnn TOTAL NETT MEGAWATTS","Total Net Active Power For The Facility","nnn NET MW",null,"nnn DISPATCH TARGET RAMP RATE","nnn GTX DISPATCH TARGET RAMP RATE MW","Facility Dispatch Target Ramp Rate","nnn DISPATCH TARGET RAMP RATE"]
["nnn NET MVAR","nnn TOTAL NETT MEGAVARS","Total Net Reactive Power For The Registered Facility","nnn NET MVAR",null,"nnn DESIRED MW","nnn DESIRED MEGAWATTS","Facility Desired Net MW Setpoint","nnn DESIRED MW"]
["nnn MAX OPERATING LIMIT","nnn GTX MIN OPERATING LIMIT MEGAWATTS","Registered Facility Maximum Active Power Capacity","nnn MAX OPERATING LIMIT",null,"nnn DESIRED RAMP RATE","nnn DESIRED RAMP RATE","Facility Desired Ramp Rate Setpoint","nnn DESIRED RAMP RATE"]
["nnn MIN OPERATING LIMIT","nnn GTX MIN OPERATING LIMIT MEGAWATTS, nnn GTX MIN OPERATING MW","Registered Facility Minimum Active Power Capacity","nnn MIN OPERATING LIMIT",null,"nnn FACILITY DESIRED NET MVAR SETPOINT","nnn DESIRED MEGAVAR SETPOINT","Facility Desired Net Mvar Setpoint","nnn FACILITY DESIRED NET MVAR SETPOINT"]
["nnn MAX RAMP RATE UP","nnn GTX MAX RAMP RATE UP MW/MIN","Registered Facility Maximum Ramp Up Capability","nnn MAX RAMP RATE UP",null,"nnn FACILITY DESIRED POWER FACTOR SETPOINT","nnn DESIRED SF PF SETPOINT","Facility Desired Power Factor Setpoint","nnn FACILITY DESIRED POWER FACTOR SETPOINT"]
["nnn MAX RAMP RATE DOWN","nnn GTX MAX RAMP RATE DOWN MW/MIN","Registered Facility Maximum Ramp Down Capability","nnn MAX RAMP RATE DOWN",null,"nnn FACILITY DESIRED KV SETPOINT","nnn  DESIRED VOLTAGE SETPOINT","Facility Desired KV Setpoint","nnn FACILITY DESIRED KV SETPOINT"]
["nnn RAMP RATE IN USE","nnn RAMP RATE OPERATING MODE","Registered Facility Current Active Ramp Rate In Use","nnn RAMP RATE IN USE",null,"nnn DESIRED TRIP HZ","nnn DESIRED TRIP FREQUENCY","Scheme/Relay frequency trip threshold","nnn DESIRED TRIP HZ"]
["nnn X MW","nnn X MW","Active Power For Each Primary Transmission Device In The Registered Facility","nnn X MW",null,"RTU HEARTBEAT","RTU INTERNAL POINT (MS Point Not Required)","Commnications Heartbeat","RTU HEART BEAT"]
["nnn X MVAR","nnn X MVAR","Reactive Power For Each Primary Transmission Device In The Registered Facility","nnn X MVAR"]
["nnn X AUX TX MW","nnn X AUX TX MW","Aggregate Active Power For Auxiliary Loads Associated With Each Generating Unit In The Registered Facility","nnn X AUX TX MW"]
["nnn X AUX TX MVAR","nnn X AUX TX MVAR","Aggregate Reactive Power For Auxiliary Loads Associated With Each Generating Unit In The Registered Facility","nnn X AUX TX MVAR"]
["nnn X OVEREXCITATION LIMIT","nnn X OVEREXCITATION LIMIT","Overexcitation Limit For Each Relevant Device Within The Registered Facility","nnn X OVEREXCITATION LIMIT"]
["nnn X UNDEREXCITATION LIMIT","nnn X UNDEREXCITATION LIMIT","Underexcitation Limit For Each Relevant Device Within The Registered Facility","nnn X UNDEREXCITATION LIMIT"]
["nnn GX FEEDER MW","nnn X FEEDER MW","Generation Feeder Mw","nnn GX FEEDER MW"]
["nnn GX FEEDER MVAR","nnn X FEEDER MVAR","Generation Feeder Mvar","nnn GX FEEDER MVAR"]
["nnn RX FEEDER AMPS","nnn X FEEDER CURRENT","Generation Feeder Current","nnn RX FEEDER AMPS"]
["nnn RX FEEDER MVAR","nnn X FEEDER MEGAVARS.","Reactive Feeder Mvar","nnn RX FEEDER MVAR"]
["nnn X FEEDER AMPS","nnn X FEEDER AMPS","Reactive Feeder Current","nnn X FEEDER AMPS"]
["nnn GSUT X KV","nnn GTGX GSUTX LV VOLTAGE","Generator Step-Up Transformer(S) Hv Voltage","nnn GSUT X KV"]
["nnn GSUT X MW","nnn X GSUTX HV MEGAWATTS","Generator Step-Up Transformer(S) Hv Mw","nnn GSUT X MW"]
["nnn GSUT X MVAR","nnn X GSUTX HV MEGARVARS","Generator Step-Up Transformer(S) Hv Mvar","nnn GSUT X MVAR"]
["nnn GSUT X LV KV","nnn GTGX GSUTX LV VOLTAGE","Generator Step-Up Transformer(S) Lv Voltage","nnn GSUT X LV KV"]
["nnn X KV","nnn X KV","Voltage Measurement At The Connection Point","nnn X KV"]
["nnn PLANT_NAME AVAILABLE REACTIVE MVAR","nnn X REACTOR X MEGAVARS","Reactive Device Available Reactive Mvar","nnn PLANT_NAME AVAILABLE REACTIVE MVAR"]
["nnn PLANT_NAME AVAILABLE CAPACITVE MVAR","nnn X CAPACITOR X MEGAVARS.,","Reactive Device Available Capacitive Mvar","nnn PLANT_NAME AVAILABLE CAPACITVE MVAR"]
["nnn X AMP","nnn X FEEDER AMP G CURRENT","Current Measurement At The Connection Point","nnn X AMP"]
["nnn BUS X KV","nnn XKV BUSBAR VOLTAGE, nnn XKV nX BUSBAR VOLTAGE, nnn XKV n BUSBAR VOLTAGE","Facility Hv Busbar Voltage Measurement","nnn BUS X KV"]
["nnn BUS X KV","nnn XKV BUSBAR VOLTAGE, nnn XKV nX BUSBAR VOLTAGE, nnn XKV n BUSBAR VOLTAGE","Facility Lv Busbar Voltage Measurement","nnn BUS X KV"]
["nnn PLANT_NAME MVAR","nnn X PLANT_NAME X MEGAVARS., nnn X PLANT_NAME MEGAVARS., nnn X PLANT_NAME X MEGAVARS.","Reactive Power Flow For Each Associated Reactive Power Device","nnn PLANT_NAME MVAR"]
["nnn MVAR CONTROL MODE","nnn MEGAVAR CONTROL MODE","Facility Target Mvar","nnn MVAR CONTROL MODE"]
["nnn PF CONTROL MODE","nnn PF CONTROL MODE, Is this really an analogue?","Facility Target Pf","nnn PF CONTROL MODE"]
["nnn KV CONTROL MODE","nnn A VOLTAGE CONTROL MODE, nnn B VOLTAGE CONTROL MODE","Facility Target Kv","nnn KV CONTROL MODE"]
["nnn AMBIENT TEMPERATURE","nnn AMBIENT TEMPERATURE","Ambient Temperature (°C) ","nnn AMBIENT TEMPERATURE"]
["nnn DESIRED MW RECEIVED","nnn DESIRED MEGAWATTS","Net Mw Facility Setpoint Back Indication Point ","nnn DESIRED MW RECEIVED"]
["nnn X DESIRED KV RECEIVED","nnn X DESIRED VOLTAGE","Generator Terminal Voltage Control Back Indication Point ","nnn X DESIRED KV RECEIVED"]
["nnn NET AVAILABLE MW","nnn NETT MEGAWATTS., nnn GTX NETT MW, nnn GX NETT MEGAWATTS","Facility Available Net Mw","nnn NET AVAILABLE MW"]
["nnn LOCAL LIMIT MW","nnn LOCAL LIMIT MEGAWATTS","Facility Local Limit Mw","nnn LOCAL LIMIT MW"]
["nnn TARGET NET SETPOINT","nnn GX TARGET LOAD SETPOINT NET, ","Target Net Load Setpoint","nnn TARGET NET SETPOINT"]
["nnn DESIRED MW","nnn DESIRED MEGAWATTS","Facility Desired Net Mw Received","nnn DESIRED MW"]
["nnn LOW AGC LIMIT","nnn LOW AGC LIMIT","Facility AGC Low Operation Limit Received","nnn LOW AGC LIMIT"]
["nnn HIGH AGC LIMIT","nnn HIGH AGC LIMIT","Facility AGC High Operation Limit Received","nnn HIGH AGC LIMIT"]
["nnn LOOK-AHEAD MW","nnn DI Basetpoint Look ahead","Look-Ahead Dispatch Target Mw Received","nnn LOOK-AHEAD MW"]
["nnn DISPATCH TARGET MW","nnn DISPATCH TARGET MEGAWATTS","Facility Dispatch Target Net Mw Received","nnn DISPATCH TARGET MW"]
["nnn DISPATCH TARGET RAMP RATE MW/MIN","nnn GTX DISPATCH TARGET RAMP RATE MW/MIN","Facility Dispatch Target Ramp Rate Received","nnn DISPATCH TARGET RAMP RATE MW/MIN"]
["nnn X AVAILABLE GENERATION UNITS","nnn GTX AVAILABLE","Number of individual generation units available","nnn X AVAILABLE GENERATION UNITS"]
["nnn HIGH WIND ALARM","nnn HIGH WIND FARM","High wind alarms","nnn HIGH WIND ALARM"]
["nnn TURBINBES STOPPED FOR HIGH WIND","nnn TURBINES STOPPED DUE TO HIGH WIND","Turbines stopped for high wind","nnn TURBINBES STOPPED FOR HIGH WIND"]
["nnn WIND SPEED KMH","nnn WIND SPEED KM/HR","Wind speed at nacelle height (kn/h)","nnn WIND SPEED KMH"]
["nnn WIND DIRECTION DEG","nnn WIND DIRECTION DEG","Wind direction at nacelle height (°)","nnn WIND DIRECTION DEG"]
["nnn AMBIENT DRY BULB TEMP DEG C","nnn AMBIENT TEMP","Ambient dry bulb temperature (°C)","nnn AMBIENT DRY BULB TEMP DEG C"]
["nnn AIR PRESSURE HPA","nnn BAROMETRIC PRESSURE ","Air pressure (hPa)","nnn AIR PRESSURE HPA"]
["nnn RELATIVE HUMIDITY","nnn RELATIVE HUMIDITY","Relative humidity (%) or dew point (°C)","nnn RELATIVE HUMIDITY"]
["nnn TEMPERATURE DEG C","nnn AMBIENT TEMPERATURE, nnn OIL TEMPERATURE, nnn HV WINDING TEMPREATURE","Temperature at nacelle height (°C)","nnn TEMPERATURE DEG C"]
["nnn MAX TEMPERATURE DEG C","nnn AMBIENT TEMP","Maximum of temperatures at nacelle height (°C)","nnn MAX TEMPERATURE DEG C"]
["nnn MAX WIND SPEED KMH","nnn WIND SPEED KM/HR","Maximum of wind speeds at nacelle height (km/h)","nnn MAX WIND SPEED KMH"]
["nnn SOLAR INVERTERS AVAILABLE","nnn X SOLAR INVERTERS AVAILABLE","Number of individual units available for service","nnn SOLAR INVERTERS AVAILABLE"]
["nnn HORIZONTAL IRRADIANCE","nnn GLOBAL HORIZONTAL IRRADIANCE, nnn SF HORIZONTAL IRRADIANCE","Solar irradiance (W/m2 ) - horizontal",{"$f":"A67","v":"nnn HORIZONTAL IRRADIANCE"}]
["nnn INCLINED IRRADIANCE","nnn SF INCLINED IRRADIANCE, nnn GLOBAL INCLINED IRRADIANCE","Solar irradiance (W/m2 ) – inclined plane","nnn INCLINED IRRADIANCE"]
["nnn TRACKERS AVG ANGLE","nnn TRACKERS AVG ANGLE","Tracking angle(s) (° from horizontal)","nnn TRACKERS AVG ANGLE"]
["nnn TRACKERS AVG ORIENT","nnn TRACKERS AVG ORIENTATION or ORIENT?","Tracking orientation (° East of North)","nnn TRACKERS AVG ORIENT"]
["nnn AMBIENT TEMPERATURE","nnn AMBIENT TEMPERATURE","Air temperature (°C, dry bulb)","nnn AMBIENT TEMPERATURE"]
["nnn MODULE TEMPERATURE","nnn MODULE TEMPERATURE","Module surface temperature (°C)","nnn MODULE TEMPERATURE"]
["nnn INVERTERS AVAILABLE","nnn INVERTERS AVAILABLE","Number of individual units available for service","nnn INVERTERS AVAILABLE"]
["nnn CHARGING MODE","nnn CHARGING MODE","Charging/discharging mode","nnn CHARGING MODE"]
["nnn CHARGING EFFICIENCY","nnn CHARGING EFFICIENCY","Charging efficiency (%)","nnn CHARGING EFFICIENCY"]
["nnn DISCHARGING EFFICIENCY","nnn DISCHARGING EFFICIENCY","Discharging efficiency (%)","nnn DISCHARGING EFFICIENCY"]
["nnn INVERTER MODE","nnn INVERTER MODE, is really an analogue?","Grid following/grid forming mode","nnn INVERTER MODE"]
["nnn AVAILABLE DISCHARGE","nnn AVAILABLE DISCHARGE","Available discharge capability(MWh)","nnn AVAILABLE DISCHARGE"]
["nnn AVAILABLE CHARGE","nnn AVAILABLE CHARGE","Available charge capability(MWh)","nnn AVAILABLE CHARGE"]
["nnn AMBIENT TEMPERATURE","nnn AMBIENT TEMPERATURE","Ambient dry bulb temperature (°C)","nnn AMBIENT TEMPERATURE"]
["nnn RELATIVE HUMIDITY","nnn RELATIVE HUMIDITY","Relative humidity (%)","nnn RELATIVE HUMIDITY"]
["nnn DEW POINT","nnn DEW POINT","Dew point (°C)","nnn DEW POINT"]
["nnn MODULE TEMPERATURE","nnn MODULE TEMPERATURE","Module temperature (°C)","nnn MODULE TEMPERATURE"]
["nnn 10 MIN AVAILABLE CAPACITY","nnn 10 MIN AVAILABLE CAPACITY","Derated Available tag (10minutes, MW) ","nnn 10 MIN AVAILABLE CAPACITY"]
["nnn 30 MIN AVAILABLE CAPACITY","nnn 30 MIN AVAILABLE CAPACITY","Derated Available tag (30minutes, MW)","nnn 30 MIN AVAILABLE CAPACITY"]
["nnn CP FREQUENCY","nnn GTX FREQUENCY CONTROL.","Measured frequency","nnn CP FREQUENCY"]
["nnn X GROSS MW","nnn X GROSS MW","Gross active power measurement of each relay/scheme","nnn X GROSS MW"]
["nnn X GROSS MVAR","nnn X GROSS MVAR","Gross reactive power measurement of each relay/scheme","nnn X GROSS MVAR"]
["nnn X NET MW","nnn X NET MW","Net active power measurement of each relay/scheme","nnn X NET MW"]
["nnn X NET MVAR","nnn X NET MVAR","Net reactive power measurement of each relay/scheme","nnn X NET MVAR"]
["nnn X KV","nnn X KV","Relay Voltage ","nnn X KV"]
["nnn DCS HEARTBEAT","RTU INTERNAL POINT  (MS Point Not Required)","Commnications Heartbeat","nnn DCS HEARTBEAT"]
["nnn GX TURBINE SPEED","nnn GTX TURBINE SPEED %"]
["nnn PPG CMS X VOLTAGE","nnn PPG CMS X VOLTAGE","Customer Main Switch line Voltage","nnn PPG CMS X VOLTAGE"]
["nnn PPG CMS X MEGAWATTS","nnn PPG CMS X MEGAWATTS","Customer Main Switch line Megawatss","nnn PPG CMS X MEGAWATTS"]
["nnn PPG CMS X MEGAVARS","nnn PPG CMS X MEGAVARS","Customer Main Switch line Megavars","nnn PPG CMS X MEGAVARS"]
["nnn PPG CMS X CURRENT","nnn PPG CMS X CURRENT","Customer Main Switch line Current","nnn PPG CMS X CURRENT"]
["nnn PPG GMSX MEGAWATTS","nnn PPG GMSX MEGAWATTS","Generator X Megawatt output","nnn PPG GMSX MEGAWATTS"]
["nnn PPG GMSX MEGAVARS","nnn PPG GMSX MEGAVARS","Generator X Megavar output","nnn PPG GMSX MEGAVARS"]

{"sheet":"Reference","index":8,"n_rows":16,"n_cols":9,"rows_kept":16,"cut":false,"hidden":true,"merged":[]}
["Object","Variant","Control Type","Point Type","Units",null,null,null,"Instructions to updated facility point lists - Western Power staff only."]
[2,2,"SBO","Signed 16 Bit","AMPS",null,null,null,"* The Preface version number needs to be updated manually to reflect the approval documents version number."]
[10,2,"PULSE","Signed 32 Bit","NA",null,null,null,"* The four  brown coloured sheets, Analogue, Binary and the two lookups are used to populate the Customer Points List via the wizard and popup box."]
[30,2,null,"NA","MW",null,null,null,"* Any new points must be added to these lists to be used. Remember to fill out all the required fields from column A to S on the Analogue and Binary sheet."]
[40,2,null,null,"MVAr",null,null,null,"* Clicking the settings button unhides these sheets to see these instructions but you need to right click on the TAB and unprotect each sheet individually to edit."]
[null,null,null,null,"KV",null,null,null,"* Also refer to Network Operations SCADA Point Requirement EDM#61755935"]
[null,null,null,null,"%"]
[null,null,null,null,"MWh"]
[null,null,null,null,"°C"]
[null,null,null,null,"_BLANK"]
[null,null,null,null,"Hpa"]
[null,null,null,null,"Km/hr"]
[null,null,null,null,"MW/MIN"]
[null,null,null,null,"PF"]
[null,null,null,null,"Hz"]
[null,null,null,null,"P Mode"]

{"sheet":"Missing Points","index":9,"n_rows":3,"n_cols":7,"rows_kept":3,"cut":false,"hidden":true,"merged":[[0,0,1,16383]]}
["Missing Points List"]
[]
["Missing points","Type","WP Automation Comments","WP NOPS Comments","AEMO Comments","Custommer Comments","Misc Comments"]

{"sheet":"Customer Point List","index":10,"n_rows":63,"n_cols":20,"rows_kept":63,"cut":false,"hidden":false,"merged":[[61,1,61,19],[1,0,5,5],[1,6,4,10],[6,1,6,2],[19,1,19,19],[33,1,33,19],[47,1,47,19]]}
[]
["AEMO & Network Operations Scheduled/Non Scheduled Facility SCADA Signals List"]
[]
[]
[]
[]
[]
[null,"Site Abbreivation (nnn)","nnn"]
[]
[]
[null,null,null,null,"DNP3 COUNTS MUST NOT EXCEED 32767","Primary Value","Decimal Places","Scaling Factor","Resolution (Max % scale range)","Dead Band (% scale range)"]
[null,"DNP Master address","XX",null,"CURRENT (A):","ALL",1,10,0.1,0.2]
[null,"DNP Slave address","XX",null,"FAULT CURRENT (A):","ALL",1,10,0.1,0.2]
[null,"WP IPv4 address","XXX.XXX.XXX.XXX/XX",null,"MWatt","ALL",2,100,0.1,0.2]
[null,"Facility IPv4 address","XXX.XXX.XXX.XXX/XX",null,"MVar","ALL",2,100,0.1,0.2]
[null,"Baud Rate","* Only required if serial used",null,"POWER FACTOR","ALL",2,100,0.1,0.2]
[]
[]
[]
[null,"Binary Outputs: AEMO → NO → Facility"]
[null,"Index","Facility Description","NOPS Point Name","Identifier (X)","Naming Template","AEMO Point Name",null,"Command Type","Object","Variant",null,null,null,null,null,"Notes","AEMO Comments","Western Power Comments","Customer Comments"]
[]
[]
[]
[]
[]
[]
[]
[]
[]
[]
[]
[]
[null,"Binary Inputs: Facility → NO → AEMO"]
[null,"Index","Facility Description","NOPS Point Name","Identifier (X)","Naming Template","AEMO Point Name",null,"Point Type","Object","Variant",null,null,null,null,null,"Notes","AEMO Comments","Western Power Comments","Customer Comments"]
[]
[]
[]
[]
[]
[]
[]
[]
[]
[]
[]
[]
[null,"Analogue Inputs: Facility → NO → AEMO"]
[null,"Index","Facility Description","NOPS Point Name","Identifier (X)","Naming Template","AEMO Point Name","Units","Point Type","Object","Variant","Scaling","Max Value","Max Eng Value","Min Value","Min Eng Value","Notes","AEMO Comments","Western Power Comments","Customer Comments"]
[]
[]
[]
[]
[]
[]
[]
[]
[]
[]
[]
[]
[null,"Analogue Outputs: AEMO → NO → Facility"]
[null,"Index","Facility Description","NOPS Point Name","Identifier (X)","Naming Template","AEMO Point Name","Units","Command Type","Object","Variant","Scaling","Max Value","Max Eng Value","Min Value","Min Eng Value","Notes","AEMO Comments","Western Power Comments","Customer Comments"]

{"sheet":"Template","index":11,"n_rows":63,"n_cols":20,"rows_kept":63,"cut":false,"hidden":true,"merged":[[33,1,33,19],[47,1,47,19],[61,1,61,19],[1,6,4,10],[19,1,19,19],[6,1,6,2],[1,0,5,5]]}
[]
["AEMO & Network Operations Scheduled/Non Scheduled Facility SCADA Signals List"]
[]
[]
[]
[]
[]
[null,"Site Abbreivation (nnn)","nnn"]
[]
[]
[null,null,null,null,"DNP3 COUNTS MUST NOT EXCEED 32767","Primary Value","Decimal Places","Scaling Factor","Resolution (Max % scale range)","Dead Band (% scale range)"]
[null,"DNP Master address","XX",null,"CURRENT (A):","ALL",1,10,0.1,0.2]
[null,"DNP Slave address","XX",null,"FAULT CURRENT (A):","ALL",1,10,0.1,0.2]
[null,"WP IPv4 address","XXX.XXX.XXX.XXX/XX",null,"MWatt","ALL",2,100,0.1,0.2]
[null,"Facility IPv4 address","XXX.XXX.XXX.XXX/XX",null,"MVar","ALL",2,100,0.1,0.2]
[null,"Baud Rate","* Only required if serial used",null,"POWER FACTOR","ALL",2,100,0.1,0.2]
[]
[]
[]
[null,"Binary Outputs: AEMO → NO → Facility"]
[null,"Index","Facility Description","NOPS Point Name","Identifier (X)","Naming Template","AEMO Point Name",null,"Command Type","Object","Variant",null,null,null,null,null,"Notes","AEMO Comments","Western Power Comments","Customer Comments"]
[]
[]
[]
[]
[]
[]
[]
[]
[]
[]
[]
[]
[null,"Binary Inputs: Facility → NO → AEMO"]
[null,"Index","Facility Description","NOPS Point Name","Identifier (X)","Naming Template","AEMO Point Name",null,"Point Type","Object","Variant",null,null,null,null,null,"Notes","AEMO Comments","Western Power Comments","Customer Comments"]
[]
[]
[]
[]
[]
[]
[]
[]
[]
[]
[]
[]
[null,"Analogue Inputs: Facility → NO → AEMO"]
[null,"Index","Facility Description","NOPS Point Name","Identifier (X)","Naming Template","AEMO Point Name","Units","Point Type","Object","Variant","Scaling","Max Value","Max Eng Value","Min Value","Min Eng Value","Notes","AEMO Comments","Western Power Comments","Customer Comments"]
[]
[]
[]
[]
[]
[]
[]
[]
[]
[]
[]
[]
[null,"Analogue Outputs: AEMO → NO → Facility"]
[null,"Index","Facility Description","NOPS Point Name","Identifier (X)","Naming Template","AEMO Point Name","Units","Command Type","Object","Variant","Scaling","Max Value","Max Eng Value","Min Value","Min Eng Value","Notes","AEMO Comments","Western Power Comments","Customer Comments"]